Cogmind - Beta 9.4 --- EXPLORER MODE // 2020.02.20 @ 16:55:45 // Winter2019/RPGLIKE Player: K.Ioz Result: Destroyed by G-73 Enforcer with Phase Gun Performance ------------- Evolutions (8) 4000 Regions Visited (31) 6200 Robots Destroyed (1113) 5565 Value Destroyed (49691) 49691 Prototype IDs (77) 1540 Alien Tech Used (2) 400 Bonus (14839) 14839 TOTAL SCORE: 82235 Bonus ------- Triggered Max Security 1000 High Alert Combat Kills 9502 Follower Combat Kills 894 Entered Garrisons 1000 Used RIF Installer 2500 Aligned with FarCom 300 Met Zhirov 300 Met R17 at Cetus 500 Friendly Fire -1157 Cogmind --------- Core Integrity 0/1200 Matter 177/300 Energy 350/1350 System Corruption 6% Temperature Cool (146) Movement Treading (156) Location -2/Quarantine Parts ------- > --- POWER (3) -------- Quantum Reactor Quantum Reactor Quantum Reactor > --- PROPULSION (5) --- Heavy Siege Treads Biometal Medium Treads Biometal Heavy Treads > --- UTILITY (12) ----- Improved Cryofiber Web Advanced Cooling System Advanced Coolant Injector Energy Well Energy Filter Centrium Medium Armor Plating Powered Armor Improved Thermal Shield Improved Force Field Hacking Suite Hacking Suite Hacking Suite > --- WEAPON (6) ------- Electrolaser Enhanced Nova Cannon Firepult Heavy Flak Cannon Linear Accelerator > --- INVENTORY (5) ---- Armored Medium Treads Improved Cooling System Improved Matter Compressor (300) Particle Charger Matter Neutralizer Peak State ------------ > --- POWER ------------ Quantum Reactor Quantum Reactor Quantum Reactor > --- PROPULSION ------- Biometal Medium Treads Biometal Heavy Treads Experimental Biometal Heavy Treads > --- UTILITY ---------- Improved Cryofiber Web Improved Cooling System Advanced Cooling System Advanced Coolant Injector Energy Well Centrium Medium Armor Plating Powered Armor Improved Thermal Shield Improved Force Field Hacking Suite Hacking Suite Hacking Suite > --- WEAPON ----------- Electrolaser Enhanced Nova Cannon Firepult Heavy Flak Cannon Linear Accelerator > --- INVENTORY -------- Armored Medium Treads Improved Matter Compressor Energy Filter Particle Charger Matter Neutralizer [Rating: 182] Favorites ----------- Power Quantum Reactor Engine Reinforced Ion Engine Reactor Quantum Reactor Propulsion Armored Treads Treads Armored Treads Utility Hacking Suite Device Improved Cooling System Storage Energy Well Processor Improved Signal Interpreter Hackware Hacking Suite Protection Powered Armor Weapon Firepult Energy Gun Tesla Rifle Energy Cannon Firepult Ballistic Gun Enhanced Autogun Ballistic Cannon Heavy Flak Cannon Special Melee Weapon Improved Datajack Build | -11 -10 -10 -9 -9 -9 -8 -8 -8 -8 -8 -7 -7 -7 -7 -6 -6 -6 -6 -6 -6 -6 -5 -5 -5 -5 -4 -4 -4 -3 -2 -2 ------- Run | Scr Mat Min Mat Min Exi Min Mat Gar Mat Gar Fac Gar Fac Gar Fac Was Fac Ext Cet Arc Hub Fac Upp Upp Zhi Pro Fac Gar Res Res Qua Slots Evolved 22 | 3 . . 1 . 1 . 4 1 1 1 1 . . 1 . . 3 . . . . 1 . . . . . . 3 1 . Power 2 | . . . 1 . . . . . . . . . . . . . 1 . . . . . . . . . . . . . . Propulsion 4 | 1 . . . . . . . . . . . . . . . . 1 . . . . . . . . . . . 1 1 . Utility 11 | 1 . . . . . . 4 1 . 1 . . . 1 . . . . . . . 1 . . . . . . 2 . . Weapon 5 | 1 . . . . 1 . . . 1 . 1 . . . . . 1 . . . . . . . . . . . . . . Parts Attached 174 | 7 4 . 7 . 1 . 17 9 9 7 19 . 7 1 8 . 7 1 9 . 1 12 6 7 6 2 2 5 13 6 1 Power 12 | 1 . . 2 . . . 2 . . . . . . . . . 1 . 3 . . 1 . . 2 . . . . . . Engine 6 | 1 . . 2 . . . 2 . . . . . . . . . 1 . . . . . . . . . . . . . . Core . | . . . . . . . . . . . . . . . . . . . . . . . . . . . . . . . . Reactor 6 | . . . . . . . . . . . . . . . . . . . 3 . . 1 . . 2 . . . . . . Propulsion 22 | 2 . . 2 . . . 2 . . . 2 . . . 1 . 3 . . . . 2 . . . . . . 4 4 . Treads 22 | 2 . . 2 . . . 2 . . . 2 . . . 1 . 3 . . . . 2 . . . . . . 4 4 . Leg . | . . . . . . . . . . . . . . . . . . . . . . . . . . . . . . . . Wheel . | . . . . . . . . . . . . . . . . . . . . . . . . . . . . . . . . Hover . | . . . . . . . . . . . . . . . . . . . . . . . . . . . . . . . . Flight . | . . . . . . . . . . . . . . . . . . . . . . . . . . . . . . . . Utility 80 | 2 1 . 2 . . . 8 5 . 4 9 . 3 1 3 . 2 . 2 . 1 7 4 7 4 1 2 4 6 1 1 Device 47 | . . . . . . . 3 3 . 1 6 . 2 . 2 . 2 . . . 1 6 3 3 3 1 2 2 5 1 1 Storage 7 | . . . . . . . . 1 . . 1 . . . 1 . . . . . . . . 2 1 . . 1 . . . Processor 2 | . . . . . . . . . . . . . . . . . . . . . . . . 1 . . . . 1 . . Hackware 7 | . . . . . . . 2 . . 3 1 . . . . . . . . . . . . . . . . 1 . . . Protection 17 | 2 1 . 2 . . . 3 1 . . 1 . 1 1 . . . . 2 . . 1 1 1 . . . . . . . Artifact . | . . . . . . . . . . . . . . . . . . . . . . . . . . . . . . . . Weapon 60 | 2 3 . 1 . 1 . 5 4 9 3 8 . 4 . 4 . 1 1 4 . . 2 2 . . 1 . 1 3 1 . Energy Gun 28 | 1 2 . . . . . 3 2 4 2 1 . 2 . 3 . . . 2 . . 2 2 . . . . 1 1 . . Energy Cannon 11 | . . . 1 . 1 . 2 . 1 . 1 . 1 . . . . 1 . . . . . . . 1 . . 1 1 . Ballistic Gun 4 | 1 . . . . . . . . . . 2 . . . . . . . 1 . . . . . . . . . . . . Ballistic Cannon 8 | . 1 . . . . . . . . . 2 . 1 . 1 . 1 . 1 . . . . . . . . . 1 . . Launcher . | . . . . . . . . . . . . . . . . . . . . . . . . . . . . . . . . Special Weapon . | . . . . . . . . . . . . . . . . . . . . . . . . . . . . . . . . Impact Weapon . | . . . . . . . . . . . . . . . . . . . . . . . . . . . . . . . . Slashing Weapon . | . . . . . . . . . . . . . . . . . . . . . . . . . . . . . . . . Piercing Weapon . | . . . . . . . . . . . . . . . . . . . . . . . . . . . . . . . . Special Melee Weapon 9 | . . . . . . . . 2 4 1 2 . . . . . . . . . . . . . . . . . . . . Unidentified Prototypes 13 | . 1 . . . . . 1 . . . 1 . 1 . 1 . . . 3 . . . . . 4 . . . . 1 . Parts Lost 1 | . . . . . . . . . . . . . . . . . . . . . . . . . . . . . 1 . . Power . | . . . . . . . . . . . . . . . . . . . . . . . . . . . . . . . . Propulsion . | . . . . . . . . . . . . . . . . . . . . . . . . . . . . . . . . Utility . | . . . . . . . . . . . . . . . . . . . . . . . . . . . . . . . . Weapon 1 | . . . . . . . . . . . . . . . . . . . . . . . . . . . . . 1 . . Highest Loss Streak 1 | . . . . . . . . . . . . . . . . . . . . . . . . . . . . . 1 . . Average Slot Usage (%) 94 | . 99 100 99 100 91 88 91 91 92 93 93 94 93 94 94 94 94 95 95 90 92 94 94 94 93 95 94 94 93 89 88 Engine 8 | . 14 14 18 25 22 22 16 14 13 12 11 11 11 11 11 11 11 14 2 . . . . . . . . . . . . Reactor 4 | . . . . . . . . . . . . . . . . . . . 11 14 14 14 13 13 12 13 13 13 12 11 11 Treads 14 | . 28 28 26 25 22 22 16 14 13 12 11 11 11 11 11 11 12 14 14 14 14 14 13 13 13 13 13 13 12 11 11 Device 18 | . . . . . . . 20 26 26 21 24 23 22 22 23 27 25 23 19 14 16 18 21 18 17 18 17 17 20 23 23 Storage 1 | . . . . . . . . . . . . . . . 1 . . . . . . . . 3 4 4 4 4 4 3 3 Hackware 12 | . . . . . . . 8 14 13 20 15 17 17 16 16 16 15 14 14 14 14 14 13 13 13 13 13 13 12 11 11 Protection 10 | . 28 28 26 25 22 22 11 7 6 6 5 5 5 5 7 5 4 4 8 9 9 8 9 9 9 9 9 9 8 7 7 Energy Gun 4 | . 13 14 8 . . . 2 6 5 5 1 . 3 5 5 5 4 4 4 4 4 4 3 4 4 4 4 4 6 3 3 Energy Cannon 10 | . . . 4 12 19 22 13 7 12 12 11 11 10 11 11 11 10 9 9 9 9 9 9 9 9 12 13 12 8 7 7 Ballistic Cannon 5 | . 7 14 13 12 3 . . . . . 3 5 5 5 5 5 7 9 9 9 9 9 9 9 9 4 4 4 5 7 7 Naked Turns . | . . . . . . . . . . . . . . . . . . . . . . . . . . . . . . . . Heaviest Build 161 | 14 21 21 33 33 52 52 60 64 66 66 77 75 75 85 87 83 106 106 135 135 134 138 146 148 148 151 151 151 152 160 161 Greatest Support 180 | 40 40 40 46 46 46 46 46 45 45 45 45 44 44 44 44 44 60 60 60 60 60 67 67 67 67 67 67 67 132 180 180 Greatest Overweight (x) 3 | 1 . . . . 1 1 2 1 1 1 3 1 1 1 3 1 2 1 2 2 2 2 2 2 2 2 2 2 3 1 . Average Overweight (x) 1 | . . . . . . 1 1 1 1 1 1 1 1 1 1 1 1 1 1 2 2 1 1 2 2 2 2 2 1 . . Largest Inventory Capacity 5 | . 3 3 3 3 3 3 3 3 3 4 4 4 5 5 5 5 5 5 5 5 5 5 5 5 5 5 5 5 5 5 5 Average Capacity 4 | . 1 3 3 3 3 3 3 3 3 3 4 4 4 5 5 5 5 5 5 5 5 5 5 5 5 5 5 5 5 5 5 Most Carried 5 | . 3 3 3 3 3 3 3 3 3 4 4 4 5 5 5 4 5 5 5 5 5 5 5 5 5 5 5 5 5 5 5 Average Carried 4 | . 1 3 2 3 2 3 2 2 2 3 3 4 4 5 4 4 4 5 4 5 4 4 4 5 4 5 5 4 4 4 5 Final Capacity 5 | . 3 3 3 3 3 3 3 3 3 4 4 4 5 5 5 5 5 5 5 5 5 5 5 5 5 5 5 5 5 5 5 Final Carried 5 | . 3 3 3 3 3 3 3 3 3 4 4 4 5 5 4 4 5 5 5 5 4 4 5 5 5 5 5 4 4 5 5 Class Distribution -------------------- 33% | Wizard-Executioner 21% | Wizard-Tank 16% | Wizard-Mutant 15% | Wizard-Gunner 12% | Hacker-Mutant Dominant Class ---------------- Hacker-Mutant | -10/Materials Hacker-Mutant | -10/Mines Hacker-Mutant | -9/Materials Hacker-Mutant | -9/Mines Wizard-Tank | -9/Exiles Wizard-Mutant | -8/Mines Wizard-Mutant | -8/Materials Wizard-Mutant | -8/Garrison Wizard-Mutant | -8/Materials Wizard-Gunner | -8/Garrison Wizard-Gunner | -7/Factory Wizard-Gunner | -7/Garrison Wizard-Tank | -7/Factory Wizard-Tank | -7/Garrison Wizard-Tank | -6/Factory Wizard-Gunner | -6/Waste Wizard-Executioner | -6/Factory Wizard-Executioner | -6/Extension Wizard-Executioner | -6/Cetus Wizard-Executioner | -6/Archives Wizard-Executioner | -6/Hub_04(d) Wizard-Executioner | -5/Factory Wizard-Executioner | -5/Upper Caves Wizard-Executioner | -5/Upper Caves Wizard-Executioner | -5/Zhirov Wizard-Executioner | -4/Proximity Caves Wizard-Executioner | -4/Factory Wizard-Executioner | -4/Garrison Wizard-Executioner | -3/Research Wizard-Executioner | -2/Research Wizard-Executioner | -2/Quarantine Resources | -11 -10 -10 -9 -9 -9 -8 -8 -8 -8 -8 -7 -7 -7 -7 -6 -6 -6 -6 -6 -6 -6 -5 -5 -5 -5 -4 -4 -4 -3 -2 -2 ----------- Run | Scr Mat Min Mat Min Exi Min Mat Gar Mat Gar Fac Gar Fac Gar Fac Was Fac Ext Cet Arc Hub Fac Upp Upp Zhi Pro Fac Gar Res Res Qua Matter Collected 10702 | 249 216 12 268 78 . 10 505 274 70 90 514 207 640 160 574 53 578 567 447 98 . 721 413 431 250 599 195 166 1514 408 395 Remotely . | . . . . . . . . . . . . . . . . . . . . . . . . . . . . . . . . Salvage Created 47568 | . 274 46 726 66 . 485 2469 1796 1309 533 2564 810 3620 868 2474 . 2337 2206 1201 303 . 2905 1092 636 . 1167 1431 1085 9977 2178 3010 Parts 1723 | . 24 . 59 12 . 16 120 77 66 38 92 36 175 25 122 . 81 66 31 6 . 88 18 25 . 20 21 50 315 75 65 Haulers Intercepted 21 | . . . . . . . 2 . 1 . 2 . 4 . 2 . 3 1 . . . . . . . . 1 . 4 1 . Recyclers Shooed 43 | . . . 1 . . . 4 . . . 3 . 3 . 3 . 5 1 . . . 1 . . . . 1 . 19 2 . Parts Field Recycled . | . . . . . . . . . . . . . . . . . . . . . . . . . . . . . . . . Retrieved Matter . | . . . . . . . . . . . . . . . . . . . . . . . . . . . . . . . . Parts Self-Destructed . | . . . . . . . . . . . . . . . . . . . . . . . . . . . . . . . . Prevented . | . . . . . . . . . . . . . . . . . . . . . . . . . . . . . . . . Kills | -11 -10 -10 -9 -9 -9 -8 -8 -8 -8 -8 -7 -7 -7 -7 -6 -6 -6 -6 -6 -6 -6 -5 -5 -5 -5 -4 -4 -4 -3 -2 -2 ------- Run | Scr Mat Min Mat Min Exi Min Mat Gar Mat Gar Fac Gar Fac Gar Fac Was Fac Ext Cet Arc Hub Fac Upp Upp Zhi Pro Fac Gar Res Res Qua Combat Hostiles Destroyed 770 | . 11 3 19 8 . 10 43 28 24 23 41 27 62 18 40 . 25 19 19 4 . 47 19 16 . 25 15 31 126 30 37 Guns 99 | . 10 1 6 . . . 7 8 4 . . 1 5 2 5 . 4 3 2 . . 5 2 3 . 5 2 6 17 . 1 Cannons 286 | . 1 . 13 8 . 2 10 6 5 8 18 11 25 5 12 . 15 8 9 2 . 22 7 7 . 6 8 8 40 17 13 AOE 201 | . . 2 . . . 6 20 8 10 13 10 11 16 10 12 . 5 3 2 . . 12 5 4 . 5 . 12 23 2 10 Classes Destroyed 23 | . 3 1 4 . . . 6 1 1 . 1 1 . . 1 . 1 1 . . . . . . . . . . 1 . 1 Worker 75 | . . . . . . . 4 . 2 . 4 . 10 . 8 . 6 5 . . . 2 . . . . 2 . 26 6 . Builder 117 | . . . 1 . . 2 5 . 5 . 10 . 17 . 11 . 9 7 . . . 4 . . . . 1 . 34 11 . Tunneler 9 | . . . 1 . . . 1 . . . 2 . . . 1 . . 2 . . . . . . . . . . 2 . . Hauler 22 | . . . . . . . 2 . 1 . 3 . 4 . 2 . 3 1 . . . . . . . . 1 . 4 1 . Recycler 42 | . . . . . . . 3 . . . 6 . 5 . . . 3 5 . . . 3 . . . . 2 . 13 2 . Carrier 9 | . . . . . . . . . . . . 1 . 1 . . . 1 1 . . . . . . 2 . . 1 . 2 Mechanic 4 | . . . . . . . . . 1 . . . 1 . . . . . . . . . . . . . . . 1 . 1 Operator 15 | . . . 1 . . . 2 . . . . . 6 . 1 . . . . 1 . 1 . . . . . . 2 . 1 Watcher 43 | . 1 . 5 . . . 5 2 3 . 6 . 5 . 5 . 1 1 2 . . 5 . . . . . . 2 . . Swarmer 139 | . 6 2 3 8 . 6 13 . 6 10 6 11 2 7 . . 2 . 5 . . 7 3 4 . 5 . 22 8 3 . Saboteur 3 | . . . . . . . . . . . . . . . . . . . . . . . . . . . . . 1 . 2 Grunt 325 | . 5 . 8 . . 5 17 12 10 7 19 9 40 4 21 . 16 9 2 . . 15 11 9 . 8 5 6 47 16 24 Brawler 20 | . . . . . . . 1 . . 2 1 1 . . . . 2 . . . . 1 1 . . . . . 5 1 5 Duelist 21 | . . . . . . . 1 1 . 1 2 . . . 1 . . 1 . . . 3 1 . . 2 . . 4 1 3 Protector 3 | . . . . . . . . . . . . . . . . . . 1 . . . . . . . . . . 2 . . Sentry 103 | . . . 8 . . . 10 13 7 2 7 3 6 6 6 . 3 3 . 4 . 3 2 1 . 2 3 2 9 3 . Specialist 2 | . . . . . . . . 2 . . . . . . . . . . . . . . . . . . . . . . . Hunter 74 | . . . . . . . 1 . 1 1 1 2 5 1 3 . 2 3 3 . . 9 . 1 . 4 7 . 28 2 . Programmer 65 | . . . . . . . . . . . 5 1 9 . 8 . . . 1 . . 8 . 1 . 4 . . 22 4 2 Behemoth 6 | . . . . . . . . . . . . . . . 1 . . 2 . . . 1 1 . . . . 1 . . . Cetus Guard 8 | . . . . . . . . . . . . . . . . . . . 8 . . . . . . . . . . . . Striker 1 | . . . . . . . . . . . . . . . . . . . . . . . . . . . . . . . 1 Assembled 1 | . . 1 . . . . . . . . . . . . . . . . . . . . . . . . . . . . . Surgeon 2 | . . . . . . . . . . . . . . . . . 2 . . . . . . . . . . . . . . Wasp 2 | . . . . . . . . . . . . . . . . . 2 . . . . . . . . . . . . . . Thug 1 | . . . . . . . . . . . . . . . . . 1 . . . . . . . . . . . . . . Martyr 1 | . . . . . . . . . . . . . . . . . 1 . . . . . . . . . . . . . . Best Kill Streak 25 | . 2 2 3 3 . 4 7 6 9 6 8 8 12 4 9 . 9 12 5 4 . 11 7 4 . 7 6 16 25 14 25 Combat Bots Only 23 | . 2 2 3 3 . 3 6 6 4 6 5 8 8 4 6 . 5 5 4 3 . 10 7 4 . 7 5 16 12 7 23 Max Kills in Single Turn 7 | . 2 2 2 1 . 5 4 2 3 3 7 2 6 3 5 . 7 6 4 2 . 5 3 3 . 2 2 4 6 4 4 Gunslinging . | . . . . . . . . . . . . . . . . . . . . . . . . . . . . . . . . Exploded 3 | . . 2 . . . 3 2 1 1 3 2 2 2 3 2 . 1 1 1 . . 3 2 3 . 1 . 3 2 1 2 Melee . | . . . . . . . . . . . . . . . . . . . . . . . . . . . . . . . . Uniques/NPCs Destroyed . | . . . . . . . . . . . . . . . . . . . . . . . . . . . . . . . . Combat | -11 -10 -10 -9 -9 -9 -8 -8 -8 -8 -8 -7 -7 -7 -7 -6 -6 -6 -6 -6 -6 -6 -5 -5 -5 -5 -4 -4 -4 -3 -2 -2 -------- Run | Scr Mat Min Mat Min Exi Min Mat Gar Mat Gar Fac Gar Fac Gar Fac Was Fac Ext Cet Arc Hub Fac Upp Upp Zhi Pro Fac Gar Res Res Qua Damage Taken 14984 | . 194 34 698 105 . 185 450 412 218 233 566 220 526 164 822 . 315 419 422 67 . 726 146 177 . 501 571 381 4032 318 2082 Core 9855 | . 123 23 414 66 . 125 301 280 149 158 394 139 368 106 533 . 214 274 267 40 . 452 108 115 . 311 349 253 2643 196 1454 Absorbed by Shields 6766 | . . . . . . . 212 177 100 96 238 93 235 87 350 . 127 175 173 27 . 290 60 195 . 552 613 426 1271 340 929 Redirected to Core 8916 | . 114 12 364 58 . 97 226 253 122 128 357 124 296 95 486 . 163 243 267 40 . 408 99 101 . 277 330 226 2499 196 1335 Core Remaining (%) 96 | 100 . 96 . . . 81 . . . 100 . . . 94 . . . . . . 100 . . . . 100 . 96 98 . . Volleys Fired 1137 | . 31 3 63 10 . 12 96 99 57 25 79 24 81 28 76 . 27 26 21 6 . 52 15 18 . 36 25 30 143 31 23 Largest 5 | . 2 2 2 2 . 2 2 2 2 2 4 4 4 4 4 . 5 5 5 5 . 5 5 5 . 5 5 5 5 5 5 Hottest 713 | . 80 80 91 91 . 306 325 305 325 325 398 398 423 423 458 . 511 511 511 511 . 511 511 496 . 548 548 548 713 552 552 Shots Fired 3643 | . 60 6 117 20 . 18 129 107 77 45 192 89 293 94 265 1 130 127 99 27 . 240 64 86 . 173 122 113 685 151 113 Gun 949 | . 52 3 32 . . . 45 85 25 3 37 23 59 20 65 . 26 25 13 3 . 40 8 18 . 35 24 28 230 28 22 Cannon 2694 | . 8 3 85 20 . 18 84 22 52 42 155 66 234 74 200 1 104 102 86 24 . 200 56 68 . 138 98 85 455 123 91 Launcher . | . . . . . . . . . . . . . . . . . . . . . . . . . . . . . . . . Special . | . . . . . . . . . . . . . . . . . . . . . . . . . . . . . . . . Kinetic 1144 | . 31 3 62 10 . . . . . . 70 47 111 24 76 . 51 52 45 13 . 103 30 36 . 47 25 23 178 62 45 Thermal 1922 | . . . . . . 6 51 22 52 42 117 42 153 50 183 1 79 75 54 14 . 137 28 32 . 91 73 62 401 89 68 Explosive . | . . . . . . . . . . . . . . . . . . . . . . . . . . . . . . . . Electromagnetic 577 | . 29 3 55 10 . 12 78 85 25 3 5 . 29 20 6 . . . . . . . 6 18 . 35 24 28 106 . . Robot Hit Streak 68 | . 10 3 52 10 . 23 53 32 20 35 64 49 54 48 62 3 34 33 40 28 . 53 30 24 . 64 61 25 44 46 68 Robot Miss Streak 4 | . 2 2 4 1 . 2 2 1 2 1 3 1 2 1 2 1 2 4 3 2 . 3 2 1 . 1 2 2 4 1 1 Penetration Max . | . . . . . . . . . . . . . . . . . . . . . . . . . . . . . . . . Secondary Targets 1 | . 1 . . . . . . . . . . . . . . . . . . . . . . . . . . . . . . Max Gunslinging Chain 1 | . 1 . . . . . . . . . . . . . . . . . . . . . . . . . . . . . . Shots Hit Robots 2500 | . 47 4 97 15 . 16 119 103 74 32 135 45 190 63 156 1 79 87 65 19 . 143 39 56 . 123 89 60 465 106 72 Core Hits 2519 | . 18 4 50 8 . 16 105 78 53 33 111 51 174 44 136 . 113 99 65 18 . 142 46 49 . 86 73 68 560 141 178 Critical Hits 39 | . . . 2 1 . . 1 . . . 2 3 2 1 5 . 1 6 2 . . 1 . . . . 3 . 6 2 1 Critical Kills 13 | . . . . . . . . . . . 1 1 1 . 1 . 1 2 1 . . . . . . . 1 . 3 . 1 Critical Parts Destroyed 24 | . . . 2 1 . . 1 . . . 1 2 1 1 3 . . 4 . . . 1 . . . . 2 . 3 2 . Melee Attacks 13 | . . . . . . . . 3 5 . 5 . . . . . . . . . . . . . . . . . . . . Impact . | . . . . . . . . . . . . . . . . . . . . . . . . . . . . . . . . Slashing . | . . . . . . . . . . . . . . . . . . . . . . . . . . . . . . . . Piercing . | . . . . . . . . . . . . . . . . . . . . . . . . . . . . . . . . Sneak Attacks 9 | . . . . . . . . 3 5 . 1 . . . . . . . . . . . . . . . . . . . . Combat Hostiles 3 | . . . . . . . . 2 1 . . . . . . . . . . . . . . . . . . . . . . Follow-up Attacks . | . . . . . . . . . . . . . . . . . . . . . . . . . . . . . . . . Damage Inflicted 112572 | . 576 99 2022 258 . 780 4161 2728 2336 1467 6574 2225 8807 2179 6865 57 4736 4360 2781 930 . 6932 2210 2074 . 4591 3238 2530 24035 5859 7162 Guns 15857 | . 488 38 705 . . . 452 1057 328 . 278 130 572 164 1230 . 549 632 263 52 . 1081 165 310 . 686 493 426 4954 432 372 Cannons 50051 | . 88 . 1179 254 . 320 1733 471 930 678 2638 1228 3853 1030 2804 25 1829 2098 1407 519 . 2909 1147 1084 . 2719 1713 1063 9880 3520 2932 Explosions 46519 | . . 61 134 4 . 460 1976 1200 1078 789 3658 867 4357 985 2821 32 2354 1630 1111 359 . 2942 898 680 . 1186 1032 1041 9099 1907 3858 Melee . | . . . . . . . . . . . . . . . . . . . . . . . . . . . . . . . . Ramming 145 | . . . 4 . . . . . . . . . 25 . 10 . 4 . . . . . . . . . . . 102 . . Kinetic 15155 | . 158 . 719 85 . . . . . . 528 331 993 191 559 . 857 842 755 250 . 1220 416 509 . 781 416 198 2628 1803 916 Thermal 86962 | . . 61 134 4 . 557 2730 1671 2008 1467 5981 1894 7374 1824 6151 57 3875 3518 2026 680 . 5712 1696 1255 . 3124 2130 1906 18825 4056 6246 Explosive 469 | . . . . . . . 195 . . . 23 . 52 . . . . . . . . . . . . . 199 . . . . Electromagnetic 9841 | . 418 38 1165 169 . 223 1236 1057 328 . 42 . 363 164 145 . . . . . . . 98 310 . 686 493 426 2480 . . Impact . | . . . . . . . . . . . . . . . . . . . . . . . . . . . . . . . . Slashing . | . . . . . . . . . . . . . . . . . . . . . . . . . . . . . . . . Piercing . | . . . . . . . . . . . . . . . . . . . . . . . . . . . . . . . . Highest Corruption 9 | . . . . . . . . . . . . . . . 5 5 8 8 9 9 9 4 4 4 4 5 . . 8 4 6 Average Corruption 4 | . . . . . . . . . . . . . . . 3 5 6 8 8 9 9 2 4 4 4 4 . . 4 3 4 Corruption Purged . | . . . . . . . . . . . . . . . . . . . . . . . . . . . . . . . . Effects 529 | . . . . . . . . . . . . . . . 45 12 77 27 36 13 4 29 44 53 7 72 . . 91 7 12 Message Errors 114 | . . . . . . . . . . . . . . . 6 1 17 3 7 1 3 8 14 8 3 22 . . 19 1 1 Matter Fused 105 | . . . . . . . . . . . . . . . 12 3 14 6 8 2 . 4 7 15 . 18 . . 9 5 2 Heat Flow Errors 45 | . . . . . . . . . . . . . . . 6 1 4 1 1 . . 2 9 6 2 4 . . 8 . 1 Energy Discharges 65 | . . . . . . . . . . . . . . . 8 2 9 4 6 2 1 . 4 9 2 9 . . 9 . . Parts Rejected 3 | . . . . . . . . . . . . . . . . . . 1 . 1 . . . . . 1 . . . . . Data Loss (minor) 60 | . . . . . . . . . . . . . . . 6 3 6 1 5 3 . 8 5 7 . 4 . . 9 1 2 Data Loss (major) 17 | . . . . . . . . . . . . . . . . 1 2 1 1 1 . . . . . 7 . . 3 . 1 Misfires 15 | . . . . . . . . . . . . . . . 2 1 2 1 4 1 . . . . . 1 . . 3 . . Targeting Errors 90 | . . . . . . . . . . . . . . . 4 . 21 9 3 2 . 6 3 8 . 4 . . 26 . 4 Weapon Failures 15 | . . . . . . . . . . . . . . . 1 . 2 . 1 . . 1 2 . . 2 . . 5 . 1 Overload Shots 1 | . . . . . . . . . . . . . . . . . . . . . . . . . . . . . 1 . . Effects 2 | . . . . . . . . . . . . . . . . . . . . . . . . . . . . . 2 . . Meltdown 2 | . . . . . . . . . . . . . . . . . . . . . . . . . . . . . 2 . . Overflow Damage 1771 | . . . 12 . . 8 39 10 37 25 319 5 213 20 97 . 138 29 21 . . 250 9 1 . 106 30 16 316 23 47 Projectiles 757 | . . . 12 . . 8 34 . 30 25 73 3 49 20 30 . 6 21 20 . . 60 4 1 . 100 19 . 208 . 34 Explosions 1010 | . . . . . . . 5 10 7 . 246 2 164 . 67 . 132 8 1 . . 190 5 . . 6 11 16 104 23 13 Melee 4 | . . . . . . . . . . . . . . . . . . . . . . . . . . . . . 4 . . Knockbacks 92 | . 2 . 8 1 . . . . . . 1 1 4 . 3 . 4 3 1 1 . 8 3 . . 9 4 1 27 6 5 Impact 1 | . . . . . . . . . . . . . . . . . . . . . . . . . . . . . 1 . . Kinetic 89 | . 2 . 8 1 . . . . . . 1 1 4 . 3 . 4 3 1 1 . 8 2 . . 9 3 1 26 6 5 Secondary 2 | . . . . . . . . . . . . . . . . . . . . . . . 1 . . . 1 . . . . Self-Inflicted Damage 1777 | . . . 54 21 . 34 27 50 2 9 165 40 165 49 237 . 65 . 33 5 . 77 6 42 . 167 73 74 298 31 53 Shots 266 | . . . 2 1 . 4 7 11 2 3 16 8 20 9 27 . 10 . 7 1 . 11 3 5 . 23 10 11 55 8 12 Rammed 11 | . . . 3 . . . . . . . . . 2 . 1 . . . . . . . . . . . . . 5 . . Targets Rammed 13 | . . . 3 . . . . . . . . . 2 . 2 . 1 . . . . . . . . . . . 5 . . Kicked . | . . . . . . . . . . . . . . . . . . . . . . . . . . . . . . . . Crushed 2 | . . . . . . . . . . . . . . . 1 . 1 . . . . . . . . . . . . . . Highest Temperature 519 | . 291 72 320 156 . 370 228 213 206 294 306 273 199 199 214 103 406 391 243 434 . 444 238 328 . 381 439 380 519 198 180 Average Temperature 117 | . 82 33 94 70 . 128 119 111 111 115 115 134 87 77 115 48 130 139 140 168 . 139 82 107 . 140 160 127 140 100 81 Received Heat Transfer 3788 | . 132 . 345 . . 99 150 228 124 72 211 54 178 77 206 . 80 104 42 18 . 112 48 36 . 73 58 54 697 69 521 Effects 24 | . 1 . 4 . . 2 2 . . . . 1 . . . . . 1 . . . 4 . . . 1 . 1 7 . . Shutdowns 1 | . . . . . . . . . . . . . . . . . . 1 . . . . . . . . . . . . . Energy Bleed 11 | . 1 . 1 . . 1 2 . . . . 1 . . . . . . . . . 2 . . . 1 . . 2 . . Interference 6 | . . . 2 . . . . . . . . . . . . . . . . . . 1 . . . . . . 3 . . Matter Decay 2 | . . . 1 . . 1 . . . . . . . . . . . . . . . . . . . . . . . . . Short Circuit 2 | . . . . . . . . . . . . . . . . . . . . . . . . . . . . 1 1 . . Damage (minor) 2 | . . . . . . . . . . . . . . . . . . . . . . 1 . . . . . . 1 . . Siege Activations . | . . . . . . . . . . . . . . . . . . . . . . . . . . . . . . . . Robots Corrupted 6 | . . . . . . 1 3 2 . . . . . . . . . . . . . . . . . . . . . . . Combat Hostiles 4 | . . . . . . 1 2 1 . . . . . . . . . . . . . . . . . . . . . . . Parts Fried 29 | . 2 . 2 . . 2 12 4 1 . . . 1 1 . . 1 . . . . . . . . . . . 3 . . Impact Corruptions 1 | . . . . . . . . . . . . . . . . . . . . . . . . . . . . . 1 . . Robots Melted 220 | . . . . . . 1 4 6 8 2 15 4 19 3 12 . 4 9 9 3 . 11 5 2 . 10 8 5 54 12 14 Combat Hostiles 180 | . . . . . . 1 4 5 5 2 13 4 16 1 11 . 1 5 6 2 . 8 5 2 . 9 5 5 46 11 13 Parts Melted 1088 | . . . . . . 10 35 33 31 15 50 31 84 18 86 . 25 55 19 9 . 67 16 13 . 42 31 23 290 53 52 Heat Transferred 330055 | . . 50 250 50 . 2630 12951 8114 7887 5184 17597 7337 28863 6919 20503 240 13563 14141 8125 2862 . 18321 6881 4465 . 9955 8353 7783 73209 15327 28495 Parts Sabotaged 2 | . . . . . . . . . . . . . . . . . . . . . . 2 . . . . . . . . . Parts Stolen . | . . . . . . . . . . . . . . . . . . . . . . . . . . . . . . . . Parts Stripped . | . . . . . . . . . . . . . . . . . . . . . . . . . . . . . . . . Power Chain Reactions 19 | . . 1 6 1 . 1 2 . 1 . . . 3 1 . . . . . . . . . 1 . 1 . 1 . . . Missiles Intercepted . | . . . . . . . . . . . . . . . . . . . . . . . . . . . . . . . . Alert | -11 -10 -10 -9 -9 -9 -8 -8 -8 -8 -8 -7 -7 -7 -7 -6 -6 -6 -6 -6 -6 -6 -5 -5 -5 -5 -4 -4 -4 -3 -2 -2 ------- Run | Scr Mat Min Mat Min Exi Min Mat Gar Mat Gar Fac Gar Fac Gar Fac Was Fac Ext Cet Arc Hub Fac Upp Upp Zhi Pro Fac Gar Res Res Qua Peak Influence 2535 | . 142 55 208 144 . 150 357 1361 899 741 667 866 633 748 400 58 624 645 486 165 39 638 . . . . 368 1052 1743 668 2535 Average Influence 318 | . 30 1 50 39 . 67 114 761 273 403 172 591 205 464 175 44 285 414 292 143 39 209 . . . . 135 784 940 263 1873 Maximum Alert Level 5 | . . . 1 . . . 1 4 3 3 2 3 2 3 2 . 2 2 2 . . 2 . . . . 1 3 5 2 5 Low Security (%) 52 | 100 100 100 99 100 . 100 72 6 53 28 73 6 60 13 66 100 33 . 22 100 100 55 . . . . 72 5 5 41 . Level 1 15 | . . . . . . . 27 14 14 4 11 15 14 13 33 . 31 46 72 . . 21 . . . . 27 1 9 24 . Level 2 18 | . . . . . . . . 30 23 53 14 43 24 54 . . 35 53 4 . . 23 . . . . . 32 21 34 . Level 3 7 | . . . . . . . . 23 9 13 . 34 . 18 . . . . . . . . . . . . . 60 17 . . Level 4 4 | . . . . . . . . 26 . . . . . . . . . . . . . . . . . . . . 39 . . Level 5 . | . . . . . . . . . . . . . . . . . . . . . . . . . . . . . 6 . . High Security . | . . . . . . . . . . . . . . . . . . . . . . . . . . . . . . . . Max Security . | . . . . . . . . . . . . . . . . . . . . . . . . . . . . . . . 99 Squads Dispatched 136 | . 1 . 1 . . . 7 . 2 . 9 . 21 . 11 . 12 4 . . . 11 . . . . 4 . 31 10 12 Investigation 4 | . 1 . . . . . . . . . . . 1 . . . . . . . . . . . . . . . 2 . . Extermination 31 | . . . . . . . . . . . 4 . 8 . 5 . 1 . . . . 4 . . . . 1 . 7 1 . Reinforcement 65 | . . . 1 . . . 3 . 2 . 4 . 12 . 6 . 8 3 . . . 6 . . . . 2 . 15 3 . Assault 20 | . . . . . . . . . . . . . . . . . 1 1 . . . 1 . . . . . . 5 . 12 Garrison 16 | . . . . . . . 4 . . . 1 . . . . . 2 . . . . . . . . . 1 . 2 6 . Intercept . | . . . . . . . . . . . . . . . . . . . . . . . . . . . . . . . . Construction Impeded 39 | . . . . . . . 1 . 1 . 1 . 8 . 3 . 6 3 . . . 4 . . . . 2 . 8 2 . Haulers Reinforced 16 | . . . . . . . . . . . 2 . 3 . 2 . 1 . . . . 2 . . . . . . 5 1 . Stealth | -11 -10 -10 -9 -9 -9 -8 -8 -8 -8 -8 -7 -7 -7 -7 -6 -6 -6 -6 -6 -6 -6 -5 -5 -5 -5 -4 -4 -4 -3 -2 -2 --------- Run | Scr Mat Min Mat Min Exi Min Mat Gar Mat Gar Fac Gar Fac Gar Fac Was Fac Ext Cet Arc Hub Fac Upp Upp Zhi Pro Fac Gar Res Res Qua Distress Signals 38 | . 2 . 2 . . . 2 1 1 . 1 . 1 . 1 . 5 1 2 . . 3 . . . . . . 13 3 . Communications Jammed . | . . . . . . . . . . . . . . . . . . . . . . . . . . . . . . . . Distress Signals . | . . . . . . . . . . . . . . . . . . . . . . . . . . . . . . . . Times Spotted 958 | . 16 5 34 8 . 11 51 37 34 17 59 24 70 16 51 . 44 21 17 9 . 51 17 19 . 27 15 29 160 31 85 Peak Tracking Total 22 | . 4 2 4 3 . 3 5 6 4 5 5 5 5 3 5 . 5 5 5 1 . 5 7 4 . 7 5 12 11 7 22 Tactical Retreats 28 | . 3 . 1 . . 2 1 2 5 . 1 1 . . . . 1 . . . . 1 . 3 . . . 2 5 . . Traps | -11 -10 -10 -9 -9 -9 -8 -8 -8 -8 -8 -7 -7 -7 -7 -6 -6 -6 -6 -6 -6 -6 -5 -5 -5 -5 -4 -4 -4 -3 -2 -2 ------- Run | Scr Mat Min Mat Min Exi Min Mat Gar Mat Gar Fac Gar Fac Gar Fac Was Fac Ext Cet Arc Hub Fac Upp Upp Zhi Pro Fac Gar Res Res Qua Traps Triggered 68 | . . . . . . . 2 3 . 11 5 8 2 11 9 . 1 . . . . 2 . . . . . 7 4 2 1 Indirectly 2 | . . . . . . . . . . . . . 1 . 1 . . . . . . . . . . . . . . . . Trap Hack Attempts 23 | . . . . . . . . . 23 . . . . . . . . . . . . . . . . . . . . . . Triggered . | . . . . . . . . . . . . . . . . . . . . . . . . . . . . . . . . Disarmed 5 | . . . . . . . . . 1 . 4 . . . . . . . . . . . . . . . . . . . . Reprogrammed 22 | . 6 . 5 . . . . . 11 . . . . . . . . . . . . . . . . . . . . . . Reused 8 | . 2 . . . . . . . 6 . . . . . . . . . . . . . . . . . . . . . . Traps Extracted . | . . . . . . . . . . . . . . . . . . . . . . . . . . . . . . . . Installed . | . . . . . . . . . . . . . . . . . . . . . . . . . . . . . . . . Triggered 9 | . 2 . . . . . . . 6 . . . . . . . . . . . . . . . . . . . 1 . . Machines | -11 -10 -10 -9 -9 -9 -8 -8 -8 -8 -8 -7 -7 -7 -7 -6 -6 -6 -6 -6 -6 -6 -5 -5 -5 -5 -4 -4 -4 -3 -2 -2 ---------- Run | Scr Mat Min Mat Min Exi Min Mat Gar Mat Gar Fac Gar Fac Gar Fac Was Fac Ext Cet Arc Hub Fac Upp Upp Zhi Pro Fac Gar Res Res Qua Machines Disabled 237 | . . 1 1 1 . 2 5 4 9 6 64 3 23 5 23 . 25 2 1 4 . 34 1 . . 3 6 3 4 3 4 Max in Single Turn 29 | . . 1 1 1 . 2 1 1 2 1 29 1 4 1 4 . 10 1 1 2 . 23 1 . . 1 2 1 1 1 1 Garrison Access 5 | . . . . . . . . . . . 1 . . . . . 2 . . . . . . . . . . . 2 . . Garrison Relay 18 | . . . . . . . . 4 . 4 . 3 . 4 . . . . . . . . . . . . . 3 . . . Machines Sabotaged . | . . . . . . . . . . . . . . . . . . . . . . . . . . . . . . . . Garrisons Compromised . | . . . . . . . . . . . . . . . . . . . . . . . . . . . . . . . . Overloaded Fab Kills . | . . . . . . . . . . . . . . . . . . . . . . . . . . . . . . . . Fab Network Shutdowns . | . . . . . . . . . . . . . . . . . . . . . . . . . . . . . . . . Hacking | -11 -10 -10 -9 -9 -9 -8 -8 -8 -8 -8 -7 -7 -7 -7 -6 -6 -6 -6 -6 -6 -6 -5 -5 -5 -5 -4 -4 -4 -3 -2 -2 --------- Run | Scr Mat Min Mat Min Exi Min Mat Gar Mat Gar Fac Gar Fac Gar Fac Was Fac Ext Cet Arc Hub Fac Upp Upp Zhi Pro Fac Gar Res Res Qua Machines Accessed 103 | . 8 . 11 . 1 . 8 . 8 . 11 . 13 . 6 . 3 1 2 1 1 4 1 1 8 1 4 . 7 3 . Terminals 76 | . 7 . 11 . . . 7 . 7 . 6 . 11 . 5 . 2 1 2 . 1 4 . . . 1 3 . 5 3 . Fabricators 2 | . . . . . . . . . . . 2 . . . . . . . . . . . . . . . . . . . . Repair Stations . | . . . . . . . . . . . . . . . . . . . . . . . . . . . . . . . . Recycling Units 2 | . 1 . . . . . . . . . . . 1 . . . . . . . . . . . . . . . . . . Scanalyzers . | . . . . . . . . . . . . . . . . . . . . . . . . . . . . . . . . Garrison Access 11 | . . . . . . . 1 . 1 . 3 . 1 . 1 . 1 . . . . . . . . . 1 . 2 . . Total Hacks 399 | . 28 . 37 . 1 . 24 . 43 . 30 . 57 . 24 . 11 1 5 25 2 21 1 1 44 2 10 . 23 9 . Successful 374 | . 22 . 31 . 1 . 24 . 43 . 26 . 56 . 24 . 10 1 5 25 2 21 1 1 44 2 10 . 17 8 . Failed 25 | . 6 . 6 . . . . . . . 4 . 1 . . . 1 . . . . . . . . . . . 6 1 . Catastrophic 1 | . . . . . . . . . . . . . . . . . . . . . . . . . . . . . 1 . . Database Lockouts . | . . . . . . . . . . . . . . . . . . . . . . . . . . . . . . . . Manual 65 | . 8 . 2 . 1 . 3 . 4 . 9 . 7 . 2 . 2 . . 1 1 7 . . . . 2 . 9 7 . Terminals 310 | . 27 . 37 . . . 22 . 41 . 25 . 55 . 23 . 10 1 5 . 2 21 . . . 2 9 . 21 9 . Fabricators 2 | . . . . . . . . . . . 2 . . . . . . . . . . . . . . . . . . . . Repair Stations . | . . . . . . . . . . . . . . . . . . . . . . . . . . . . . . . . Recycling Units 2 | . 1 . . . . . . . . . . . 1 . . . . . . . . . . . . . . . . . . Scanalyzers . | . . . . . . . . . . . . . . . . . . . . . . . . . . . . . . . . Garrison Access 13 | . . . . . . . 2 . 2 . 3 . 1 . 1 . 1 . . . . . . . . . 1 . 2 . . Terminal Hacks 357 | . 21 . 31 . 1 . 22 . 41 . 21 . 54 . 23 . 9 1 5 25 2 21 1 1 44 2 9 . 15 8 . Record 73 | . . . 1 . . . . . . . 1 . . . 2 . . . 4 25 . 3 . . 32 2 . . 3 . . Part Schematic 28 | . 1 . . . . . . . . . 2 . 9 . 5 . 1 . . . . 1 . . 4 . 4 . 1 . . Robot Schematic 4 | . . . . . . . . . . . 1 . 1 . . . . . . . . 2 . . . . . . . . . Robot Analysis 15 | . . . 2 . . . . . 1 . . . 3 . 1 . 1 . . . 1 . . . 4 . 1 . 1 . . Prototype ID Bank 22 | . . . 1 . . . 2 . 4 . 2 . 5 . 2 . . . . . . 1 . . 4 . 1 . . . . Open Door 5 | . . . . . . . . . . . . . . . . . . 1 1 . . . 1 1 . . . . . 1 . Level Access Points 3 | . . . . . . . . . . . . . 1 . . . . . . . . 1 . . . . 1 . . . . Branch Access Points 9 | . . . . . . . 1 . . . . . 1 . 1 . 1 . . . 1 1 . . . . 1 . 1 1 . Emergency Access Points 10 | . . . 1 . . . . . 4 . 2 . 2 . 1 . . . . . . . . . . . . . . . . Machine Index 3 | . . . . . . . 1 . . . . . 1 . . . . . . . . 1 . . . . . . . . . Terminal Index 3 | . . . . . . . . . 1 . . . . . . . 1 . . . . . . . . . 1 . . . . Recycling Unit Index 1 | . . . . . . . . . . . . . 1 . . . . . . . . . . . . . . . . . . Scanalyzer Index 3 | . . . . . . . 1 . 1 . . . . . . . . . . . . 1 . . . . . . . . . Garrison Index 4 | . . . . . . . . . 1 . 1 . 1 . 1 . . . . . . . . . . . . . . . . Alert Level 8 | . 2 . 1 . . . 2 . 1 . . . . . . . . . . . . 2 . . . . . . . . . Unreport Threat 42 | . 2 . 1 . . . 2 . 6 . 4 . 6 . 1 . 1 . . . . 5 . . . . . . 9 5 . Locate Traps 25 | . 4 . 4 . . . 3 . 5 . 3 . 4 . 1 . . . . . . . . . . . . . . 1 . Disarm Traps 1 | . . . . . . . . . . . 1 . . . . . . . . . . . . . . . . . . . . Reprogram Traps 4 | . 1 . 2 . . . . . 1 . . . . . . . . . . . . . . . . . . . . . . Dispatch Records 10 | . 1 . 2 . . . 1 . 3 . 1 . 2 . . . . . . . . . . . . . . . . . . Maintenance Status 4 | . 1 . . . . . . . 1 . . . . . 1 . 1 . . . . . . . . . . . . . . Security Status 2 | . . . 2 . . . . . . . . . . . . . . . . . . . . . . . . . . . . Surveillance Status 6 | . 2 . . . . . . . 2 . 1 . 1 . . . . . . . . . . . . . . . . . . Patrol Status 4 | . . . 2 . . . 1 . . . . . . . 1 . . . . . . . . . . . . . . . . Transport Status 10 | . . . 2 . . . 2 . 2 . . . 3 . . . . . . . . 1 . . . . . . . . . Investigation Status 4 | . . . 1 . . . . . . . . . 1 . . . 1 . . . . 1 . . . . . . . . . Extermination Status 2 | . . . . . . . . . . . 1 . . . 1 . . . . . . . . . . . . . . . . Reinforcement Status 6 | . 1 . 1 . . . 1 . 2 . . . 1 . . . . . . . . . . . . . . . . . . Assault Status 5 | . 1 . . . . . 1 . . . 1 . 2 . . . . . . . . . . . . . . . . . . Intercept Status 1 | . . . . . . . . . . . . . 1 . . . . . . . . . . . . . . . . . . Recall Investigation 4 | . . . 1 . . . . . . . . . 1 . . . 1 . . . . 1 . . . . . . . . . Recall Extermination 2 | . . . . . . . . . . . . . . . 2 . . . . . . . . . . . . . . . . Recall Reinforcements 4 | . 1 . 1 . . . . . 1 . . . 1 . . . . . . . . . . . . . . . . . . Recall Assault 2 | . 1 . . . . . . . . . . . 1 . . . . . . . . . . . . . . . . . . Hauler Manifests 13 | . 2 . 3 . . . 3 . 1 . . . 2 . 1 . 1 . . . . . . . . . . . . . . Registered Components 4 | . . . 1 . . . 1 . 1 . . . 1 . . . . . . . . . . . . . . . . . . Registered Prototypes 3 | . . . 1 . . . . . 1 . . . . . 1 . . . . . . . . . . . . . . . . Zone Layout 7 | . 1 . 1 . . . . . 2 . . . 2 . 1 . . . . . . . . . . . . . . . . EX-Prototype ID Bank 1 | . . . . . 1 . . . . . . . . . . . . . . . . . . . . . . . . . . Fabricator Hacks 2 | . . . . . . . . . . . 2 . . . . . . . . . . . . . . . . . . . . Network Status 1 | . . . . . . . . . . . 1 . . . . . . . . . . . . . . . . . . . . Build 1 | . . . . . . . . . . . 1 . . . . . . . . . . . . . . . . . . . . Repair Station Hacks . | . . . . . . . . . . . . . . . . . . . . . . . . . . . . . . . . Recycling Unit Hacks . | . . . . . . . . . . . . . . . . . . . . . . . . . . . . . . . . Scanalyzer . | . . . . . . . . . . . . . . . . . . . . . . . . . . . . . . . . Garrison Access Hacks 13 | . . . . . . . 2 . 2 . 3 . 1 . 1 . 1 . . . . . . . . . 1 . 2 . . Unlock Access 7 | . . . . . . . 1 . 1 . 2 . 1 . 1 . . . . . . . . . . . 1 . . . . Seal Access 4 | . . . . . . . . . . . 1 . . . . . 1 . . . . . . . . . . . 2 . . Coupler Status 2 | . . . . . . . 1 . 1 . . . . . . . . . . . . . . . . . . . . . . Unauthorized Hacks 4 | . 2 . . . . . . . . . . . 2 . . . . . . . . . . . . . . . . . . Terminals . | . . . . . . . . . . . . . . . . . . . . . . . . . . . . . . . . Fabricators . | . . . . . . . . . . . . . . . . . . . . . . . . . . . . . . . . Repair Stations . | . . . . . . . . . . . . . . . . . . . . . . . . . . . . . . . . Recycling Units 2 | . 1 . . . . . . . . . . . 1 . . . . . . . . . . . . . . . . . . Tunnel 2 | . 1 . . . . . . . . . . . 1 . . . . . . . . . . . . . . . . . . Scanalyzers . | . . . . . . . . . . . . . . . . . . . . . . . . . . . . . . . . Garrison Access . | . . . . . . . . . . . . . . . . . . . . . . . . . . . . . . . . Data Cores Recovered 6 | . . . . . . . . . . . . . 2 . . . 1 . . . . 1 . . . . . . 2 . . Used 2 | . . . . . . . . . . . . . . . . . 1 . . . . . . . . . . . 1 . . Hacking Detections 64 | . 6 . 8 . . . 6 . 6 . 9 . 11 . 4 . 1 . . . . 3 . . . . 3 . 5 2 . Full Trace Events . | . . . . . . . . . . . . . . . . . . . . . . . . . . . . . . . . Feedback Events . | . . . . . . . . . . . . . . . . . . . . . . . . . . . . . . . . Feedback Blocked . | . . . . . . . . . . . . . . . . . . . . . . . . . . . . . . . . Robot Schematics Acquired 4 | . . . . . . . . . . . 1 . 1 . . . . . . . . 2 . . . . . . . . . Robots Built 1 | . . . . . . . . . . . 1 . . . . . . . . . . . . . . . . . . . . Matter 153 | . . . . . . . . . . . 153 . . . . . . . . . . . . . . . . . . . . Time 81 | . . . . . . . . . . . 81 . . . . . . . . . . . . . . . . . . . . Total Robot Build Rating 1 | . . . . . . . . . . . 1 . . . . . . . . . . . . . . . . . . . . Part Schematics Acquired 28 | . 1 . . . . . . . . . 2 . 9 . 5 . 1 . . . . 1 . . 4 . 4 . 1 . . Parts Built . | . . . . . . . . . . . . . . . . . . . . . . . . . . . . . . . . Matter . | . . . . . . . . . . . . . . . . . . . . . . . . . . . . . . . . Time . | . . . . . . . . . . . . . . . . . . . . . . . . . . . . . . . . Total Part Build Rating . | . . . . . . . . . . . . . . . . . . . . . . . . . . . . . . . . Parts Repaired . | . . . . . . . . . . . . . . . . . . . . . . . . . . . . . . . . Time . | . . . . . . . . . . . . . . . . . . . . . . . . . . . . . . . . Parts Recycled . | . . . . . . . . . . . . . . . . . . . . . . . . . . . . . . . . Recycled Matter . | . . . . . . . . . . . . . . . . . . . . . . . . . . . . . . . . Retrieved Matter . | . . . . . . . . . . . . . . . . . . . . . . . . . . . . . . . . Retrieved Components . | . . . . . . . . . . . . . . . . . . . . . . . . . . . . . . . . Parts Scanalyzed . | . . . . . . . . . . . . . . . . . . . . . . . . . . . . . . . . Part Schematics Acquired . | . . . . . . . . . . . . . . . . . . . . . . . . . . . . . . . . Parts Damaged . | . . . . . . . . . . . . . . . . . . . . . . . . . . . . . . . . Bothacking | -11 -10 -10 -9 -9 -9 -8 -8 -8 -8 -8 -7 -7 -7 -7 -6 -6 -6 -6 -6 -6 -6 -5 -5 -5 -5 -4 -4 -4 -3 -2 -2 ------------ Run | Scr Mat Min Mat Min Exi Min Mat Gar Mat Gar Fac Gar Fac Gar Fac Was Fac Ext Cet Arc Hub Fac Upp Upp Zhi Pro Fac Gar Res Res Qua Used RIF Installer 5 | . . . . . . . . 1 . 1 . 1 . 1 . . . . . . . . . . . . . 1 . . . Coupler Efficiency 1 | . . . . . . . . . . . . . . . . . . . . . . . . . . . . 1 . . . Robot Detection 1 | . . . . . . . . . . . . 1 . . . . . . . . . . . . . . . . . . . Alert ID Control 1 | . . . . . . . . . . 1 . . . . . . . . . . . . . . . . . . . . . Structural Interface 1 | . . . . . . . . . . . . . . 1 . . . . . . . . . . . . . . . . . Robots Hacked 3 | . . . . . . . . . 1 . 2 . . . . . . . . . . . . . . . . . . . . Non-combat 2 | . . . . . . . . . 1 . 1 . . . . . . . . . . . . . . . . . . . . Combat 1 | . . . . . . . . . . . 1 . . . . . . . . . . . . . . . . . . . . Robot Hacks Applied 6 | . . . . . . . . . 2 . 4 . . . . . . . . . . . . . . . . . . . . parse_system 1 | . . . . . . . . . 1 . . . . . . . . . . . . . . . . . . . . . . generate_anomaly 1 | . . . . . . . . . . . 1 . . . . . . . . . . . . . . . . . . . . ignore_repairs 1 | . . . . . . . . . 1 . . . . . . . . . . . . . . . . . . . . . . scatter_targeting 1 | . . . . . . . . . . . 1 . . . . . . . . . . . . . . . . . . . . wipe_record 1 | . . . . . . . . . . . 1 . . . . . . . . . . . . . . . . . . . . go_dormant 1 | . . . . . . . . . . . 1 . . . . . . . . . . . . . . . . . . . . Relay Couplers Released 32 | . . . . . . . . 5 . 7 1 4 . 7 . . 1 . . . . . . . . . . 5 2 . . Machine Destruction 30 | . . . . . . . . 5 . 7 1 4 . 7 . . 1 . . . . . . . . . . 5 . . . Programmers 2 | . . . . . . . . . . . . . . . . . . . . . . . . . . . . . 2 . . Attached 4 | . . . . . . . . . . 3 . . . . . . . . . . . . . . . . . 1 . . . Robots Rewired 5 | . . . . . . . . 3 1 . . . . 1 . . . . . . . . . . . . . . . . . Allies Hacked 1 | . . . . . . . . . . . 1 . . . . . . . . . . . . . . . . . . . . Hacks Repelled . | . . . . . . . . . . . . . . . . . . . . . . . . . . . . . . . . Allies | -11 -10 -10 -9 -9 -9 -8 -8 -8 -8 -8 -7 -7 -7 -7 -6 -6 -6 -6 -6 -6 -6 -5 -5 -5 -5 -4 -4 -4 -3 -2 -2 -------- Run | Scr Mat Min Mat Min Exi Min Mat Gar Mat Gar Fac Gar Fac Gar Fac Was Fac Ext Cet Arc Hub Fac Upp Upp Zhi Pro Fac Gar Res Res Qua Total Allies 31 | . . 2 . 3 . . . 3 1 . 1 . . 1 . 20 . . . . . . . . . . . . . . . Largest Group 20 | . . 2 2 3 3 3 . 1 1 1 1 . . 1 . 20 20 . . . . . . . . . . . . . . Highest-Rated Group 725 | . . 42 42 40 40 40 . 21 15 15 9 . . 32 . 725 725 . . . . . . . . . . . . . . Highest-Rated Ally 50 | . . 31 31 16 16 16 . 21 15 15 9 . . 32 . 50 50 . . . . . . . . . . . . . . Total Orders 4 | . . . . . . . . 1 . . . . . . 1 . . . . . . . 1 . . . . . . 1 . ROAM 1 | . . . . . . . . 1 . . . . . . . . . . . . . . . . . . . . . . . EXPLORE 3 | . . . . . . . . . . . . . . . 1 . . . . . . . 1 . . . . . . 1 . Ally Attacks 163 | . . 6 17 . . 10 . 6 . 5 . . . 2 . . 117 . . . . . . . . . . . . . . Total Damage 4676 | . . 105 256 . . 101 . 61 . 108 . . . 44 . . 4001 . . . . . . . . . . . . . . Kills 41 | . . 3 4 . . . . . . 1 . . . 1 . . 32 . . . . . . . . . . . . . . Allies Corrupted 5 | . . . . . . . . . . . . . . . . . 4 . . . . . . . . . . . . 1 . Allies Melted 2 | . . . . . . . . . . . . . . . . . 2 . . . . . . . . . . . . . . Intel | -11 -10 -10 -9 -9 -9 -8 -8 -8 -8 -8 -7 -7 -7 -7 -6 -6 -6 -6 -6 -6 -6 -5 -5 -5 -5 -4 -4 -4 -3 -2 -2 ------- Run | Scr Mat Min Mat Min Exi Min Mat Gar Mat Gar Fac Gar Fac Gar Fac Was Fac Ext Cet Arc Hub Fac Upp Upp Zhi Pro Fac Gar Res Res Qua Robot Analysis Total 15 | . . . 2 . . . . . 1 . . . 3 . 1 . 1 . . . 1 . . . 4 . 1 . 1 . . Derelict Logs Recovered 10 | . . 2 . 1 . . . . . . . . . . . . . . . . . . 2 2 . 3 . . . . . Drone Launches 13 | . . . . . . . . . . . . . . . 2 . . . . . . . 2 . . . . . . 9 . Drone Recoveries . | . . . . . . . . . . . . . . . . . . . . . . . . . . . . . . . . Exploration | -11 -10 -10 -9 -9 -9 -8 -8 -8 -8 -8 -7 -7 -7 -7 -6 -6 -6 -6 -6 -6 -6 -5 -5 -5 -5 -4 -4 -4 -3 -2 -2 ------------- Run | Scr Mat Min Mat Min Exi Min Mat Gar Mat Gar Fac Gar Fac Gar Fac Was Fac Ext Cet Arc Hub Fac Upp Upp Zhi Pro Fac Gar Res Res Qua Turns Passed 50073 | 178 1258 1007 2650 957 731 951 2627 2234 2241 1470 3683 1061 4084 1198 2640 524 1947 608 963 364 79 2309 2083 2566 491 2679 643 1456 3119 984 288 Spaces Moved 24025 | 122 683 620 1334 572 416 506 1239 1001 1163 740 1825 549 2161 644 1322 313 971 250 406 158 38 962 943 1175 227 1184 247 591 1107 447 109 Core 27 | 27 . . . . . . . . . . . . . . . . . . . . . . . . . . . . . . . Treads 23998 | 95 683 620 1334 572 416 506 1239 1001 1163 740 1825 549 2161 644 1322 313 971 250 406 158 38 962 943 1175 227 1184 247 591 1107 447 109 Legs . | . . . . . . . . . . . . . . . . . . . . . . . . . . . . . . . . Wheels . | . . . . . . . . . . . . . . . . . . . . . . . . . . . . . . . . Hover . | . . . . . . . . . . . . . . . . . . . . . . . . . . . . . . . . Flight . | . . . . . . . . . . . . . . . . . . . . . . . . . . . . . . . . Fastest Speed 50 | 50 160 160 160 160 160 180 172 172 172 172 165 165 165 165 165 165 165 190 190 210 210 190 190 210 210 210 210 210 188 156 156 Average Speed 180 | 138 160 160 160 160 174 180 176 172 172 172 180 165 165 165 165 165 176 190 208 210 210 209 209 210 210 210 210 210 199 169 156 Slowest Speed 230 | 160 160 160 160 160 180 180 200 172 172 172 205 165 165 165 205 165 210 190 210 210 210 210 210 210 210 210 210 210 230 188 156 Overloaded Moves . | . . . . . . . . . . . . . . . . . . . . . . . . . . . . . . . . Propulsion Burnouts . | . . . . . . . . . . . . . . . . . . . . . . . . . . . . . . . . Robots Hopped . | . . . . . . . . . . . . . . . . . . . . . . . . . . . . . . . . Cave-ins Triggered . | . . . . . . . . . . . . . . . . . . . . . . . . . . . . . . . . Teleports 1 | . . . . . . . . . . . . . . . . . . . . . . . . . 1 . . . . . . Exploration Rate (%) 67 | 8 95 99 98 99 88 99 94 84 71 92 47 72 59 96 39 95 32 45 87 89 5 28 96 98 62 99 10 98 31 26 16 Regions Visited 31 Branch Regions 13 Pre-discovered Areas 3 | . 1 . . 1 . . . . . . . . 1 . . . . . . . . . . . . . . . . . . Known Exits Taken 24 | 1 1 1 1 1 1 1 1 . 1 . 1 . 1 . . . 1 1 1 1 1 1 1 1 1 1 1 . 1 1 . Unknown Exits Taken . | . . . . . . . . . . . . . . . . . . . . . . . . . . . . . . . . Scrap Searched 10 | . . 1 . . . . . . . . . . . . . . . . . . . . 3 4 . 2 . . . . . Spaces Dug 4 | . . . . . . . . . . . . . . . 4 . . . . . . . . . . . . . . . . Terrain Destroyed 1662 | . . 13 20 4 . 39 221 . 198 . 366 . 173 . 143 . 101 20 14 1 . 133 12 11 . 28 60 15 66 12 12 Melee . | . . . . . . . . . . . . . . . . . . . . . . . . . . . . . . . . Projectile 312 | . . . . . . 2 17 . 25 . 17 . 20 . 53 . 19 14 8 1 . 19 10 6 . 11 4 8 58 10 10 AOE 1350 | . . 13 20 4 . 37 204 . 173 . 349 . 153 . 90 . 82 6 6 . . 114 2 5 . 17 56 7 8 2 2 Actions | -11 -10 -10 -9 -9 -9 -8 -8 -8 -8 -8 -7 -7 -7 -7 -6 -6 -6 -6 -6 -6 -6 -5 -5 -5 -5 -4 -4 -4 -3 -2 -2 --------- Run | Scr Mat Min Mat Min Exi Min Mat Gar Mat Gar Fac Gar Fac Gar Fac Was Fac Ext Cet Arc Hub Fac Upp Upp Zhi Pro Fac Gar Res Res Qua Total 28266 | 128 793 629 1731 594 423 529 1550 1400 1318 892 2068 657 2495 717 1605 321 1133 312 468 175 38 1114 1009 1225 241 1280 304 740 1625 588 164 Wait 1924 | . 56 7 283 8 4 9 142 250 48 86 87 51 185 15 135 9 102 19 9 3 . 29 19 7 . 25 28 71 167 56 14 Move 23991 | 121 682 619 1333 571 415 505 1238 999 1162 738 1824 547 2161 642 1322 312 970 249 405 157 37 961 942 1174 226 1183 246 589 1106 446 109 Hop . | . . . . . . . . . . . . . . . . . . . . . . . . . . . . . . . . Pick Up 18 | . 3 . 1 . 1 . 3 . 1 1 . . 1 . 2 . 1 . 1 . . 1 . . . . . . 2 . . Fast Attach 137 | 7 4 . 6 . 1 . 17 8 1 5 12 . 6 1 5 . 5 1 8 . . 8 6 6 8 2 2 4 9 5 . Attach 11 | . . . . . . . . 1 . . 2 . . . . . . . . . 1 4 . . . . . 1 2 . . Detach 21 | . . . . . . . . 1 . 1 5 . 1 . . . 1 . . . . 3 2 1 1 . . 1 3 1 . Swap 32 | . . . 1 . . . . 4 8 2 5 . 1 . 3 . 2 . 1 . . . . 1 . . . . 2 1 1 Drop 100 | . 4 . 7 . 2 . 13 3 1 3 5 . 6 . 7 . 2 . 9 . . 4 5 5 6 1 2 4 7 4 . Fire 1137 | . 31 3 63 10 . 12 96 99 57 25 79 24 81 28 76 . 27 26 21 6 . 52 15 18 . 36 25 30 143 31 23 Melee 13 | . . . . . . . . 3 5 . 5 . . . . . . . . . . . . . . . . . . . . Ram . | . . . . . . . . . . . . . . . . . . . . . . . . . . . . . . . . Kick . | . . . . . . . . . . . . . . . . . . . . . . . . . . . . . . . . Crush 13 | . . . 3 . . . . . . . . . 2 . 2 . 1 . . . . . . . . . . . 5 . . Escape Stasis 78 | . . . . . . . . 4 . 14 2 16 2 20 . . . . . . . . . . . . . 14 6 . . Rewire 9 | . . . . . . . . 5 . . . 1 . 2 . . . . . . . . . 1 . . . . . . . Trap 23 | . . . . . . . . . 23 . . . . . . . . . . . . . . . . . . . . . . Miscellaneous 759 | . 13 . 34 5 . 3 41 23 12 17 42 18 49 9 53 . 22 17 14 9 . 52 20 12 . 33 1 26 173 44 17 Route ------- -11/Scrapyard -10/Materials (discovered 4 exits: *Mat x3 / *Min) -10/Mines (discovered 2 exits: *Mat x2) -9/Materials (discovered 4 exits: *Mat x2 / *Min x2) -9/Mines (discovered 3 exits: *Mat x2 / *Exi) -9/Exiles (discovered 2 exits: *Min x2) -8/Mines (discovered 2 exits: *Mat x2) -8/Materials (discovered 3 exits: *Fac x2 / Gar) -8/Garrison (discovered 3 exits: *Mat x3) -8/Materials (discovered 3 exits: *Fac x2 / Gar) -8/Garrison (discovered 3 exits: *Fac x3) -7/Factory (discovered 4 exits: *Fac / *Sto / Gar / Gar) -7/Garrison (discovered 3 exits: *Fac x3) -7/Factory (discovered 9 exits: *Fac x4 / Sto x2 / *Low x2 / Gar) -7/Garrison (discovered 3 exits: *Fac x3) -6/Factory (discovered 7 exits: *Fac x2 / *Low x2 / Ext x2 / Gar) -6/Waste -6/Factory (discovered 4 exits: Low x2 / *Ext x2) -6/Extension (discovered 3 exits: *Fac x2 / *Cet) -6/Cetus (discovered 3 exits: *Fac x2 / *Arc) -6/Archives (discovered 3 exits: *Fac / *Hub x2) -6/Hub_04(d) -5/Factory (discovered 6 exits: *Fac x4 / *Upp x2) -5/Upper Caves -5/Upper Caves (discovered 2 exits: *Fac / *Zhi) -5/Zhirov -4/Proximity Caves -4/Factory (discovered 7 exits: Res x4 / Upp x2 / Gar) -4/Garrison (discovered 3 exits: *Res x3) -3/Research (discovered 4 exits: *Res / *Arm / Tes x2) -2/Research (discovered 2 exits: *Qua x2) -2/Quarantine History --------- Turn | Location | Event 4 | -11/Scrapyard | Identified exit to Materials 4 | -11/Scrapyard | Discovered exit to Materials (range 14) 102 | -11/Scrapyard | Upgraded with Utility slot (x1) 126 | -11/Scrapyard | Upgraded with Weapon slot (x1) 136 | -11/Scrapyard | Upgraded with Propulsion slot (x1) 179 | -11/Scrapyard | Entered Materials 318 | -10/Materials | Build established: Hacker-Mutant 563 | -10/Materials | Identified exit to Materials 563 | -10/Materials | Discovered exit to Materials (range 16) 925 | -10/Materials | Identified exit to Mines 925 | -10/Materials | Discovered exit to Mines (range 12) 1040 | -10/Materials | Discovered exit to Materials (range 6) 1189 | -10/Materials | Reached level 2 1307 | -10/Materials | Discovered exit to Materials (range 5) 1437 | -10/Materials | Entered Mines 1670 | -10/Mines | Discovered exit to Materials (range 15) 1678 | -10/Mines | Learned Materials terminal intel 1928 | -10/Mines | Found a hidden stash of uninstalled traps 1948 | -10/Mines | Assembled infested the area 1981 | -10/Mines | Learned Materials terminal intel 2409 | -10/Mines | Discovered exit to Materials (range 14) 2444 | -10/Mines | Entered Materials 2444 | -9/Materials | Accompanied by 2 allies 2445 | -9/Materials | Loaded intel: 12 terminal locations 2446 | -9/Materials | Reached level 3 2446 | -9/Materials | Reached level 4 2449 | -9/Materials | Led the pair of lost Derelicts to an unsafe place 2865 | -9/Materials | Identified exit to Materials 2865 | -9/Materials | Discovered exit to Materials (range 10) 3248 | -9/Materials | Reached level 5 3749 | -9/Materials | Identified exit to Mines 3749 | -9/Materials | Discovered exit to Mines (range 12) 3920 | -9/Materials | Upgraded with Power slot (x1) 4076 | -9/Materials | Discovered exit to Materials (range 11) 4433 | -9/Materials | Reached level 6 4792 | -9/Materials | Discovered exit to Mines (range 8) 5094 | -9/Materials | Entered Mines 5101 | -9/Mines | Received a Rocket Launcher from a helpful Derelict 5139 | -9/Mines | Deemed a non-threat by the Exiles lab entrance 5139 | -9/Mines | Identified exit to Exiles 5139 | -9/Mines | Discovered exit to Exiles (range 5) 5285 | -9/Mines | Reached level 7 5343 | -9/Mines | Learned location of Storage (-7) 5370 | -9/Mines | Discovered exit to Materials (range 15) 5376 | -9/Mines | Discovered exit to Materials (range 11) 5421 | -9/Mines | Learned 2 Materials zone layouts 5956 | -9/Mines | Assisted by bots powering up and referring to "LRC-V3" 6051 | -9/Mines | Entered Exiles 6051 | -9/Exiles | Accompanied by 3 allies 6072 | -9/Exiles | Identified exit to Mines 6072 | -9/Exiles | Discovered exit to Mines (range 15) 6091 | -9/Exiles | Met 8R-AWN 6117 | -9/Exiles | Met EX-HEX 6165 | -9/Exiles | Met EX-BIN 6183 | -9/Exiles | Aligned with FarCom system 6184 | -9/Exiles | Given EX-Vault access code 6221 | -9/Exiles | Opened EX-Vault 6242 | -9/Exiles | Upgraded with Weapon slot (x1) 6246 | -9/Exiles | Found Firepult 6283 | -9/Exiles | Warned to stay clear of 0b10 Research branches 6339 | -9/Exiles | Met EX-DEC 6399 | -9/Exiles | Visited The Gauntlet 6552 | -9/Exiles | Build established: Wizard-Tank 6753 | -9/Exiles | Discovered exit to Mines (range 10) 6782 | -9/Exiles | Left Exiles lab with Firepult 6782 | -9/Exiles | Entered Mines 6782 | -8/Mines | Accompanied by 3 allies 6784 | -8/Mines | Reached level 8 6996 | -8/Mines | Discovered exit to Materials (range 6) 7250 | -8/Mines | Discovered exit to Materials (range 8) 7672 | -8/Mines | Build established: Wizard-Mutant 7733 | -8/Mines | Entered Materials 7735 | -8/Materials | Loaded intel: 12 terminal locations 7735 | -8/Materials | Reached level 9 7805 | -8/Materials | Upgraded with Utility slot (x1) 8036 | -8/Materials | Build established: Wizard-Tank 8073 | -8/Materials | Reached level 10 8235 | -8/Materials | Upgraded with Utility slot (x1) 8357 | -8/Materials | Upgraded with Utility slot (x1) 8462 | -8/Materials | Garrison activated, responded to threat 8538 | -8/Materials | Reached level 11 8975 | -8/Materials | Upgraded with Utility slot (x1) 9271 | -8/Materials | Identified exit to Factory 9271 | -8/Materials | Discovered exit to Factory (range 10) 9420 | -8/Materials | Garrison activated, responded to threat 9423 | -8/Materials | Reached level 12 9520 | -8/Materials | Build established: Wizard-Mutant 10162 | -8/Materials | Discovered exit to Factory (range 16) 10358 | -8/Materials | Identified exit to Garrison 10360 | -8/Materials | Entered Garrison 10470 | -8/Garrison | Triggered checkpoint 10496 | -8/Garrison | Triggered checkpoint 10500 | -8/Garrison | Reached level 13 10536 | -8/Garrison | Garrison Relay disabled 10548 | -8/Garrison | Upgraded with Utility slot (x1) 10768 | -8/Garrison | Triggered checkpoint 11156 | -8/Garrison | Triggered checkpoint 11343 | -8/Garrison | Identified exit to Materials 11343 | -8/Garrison | Discovered exit to Materials (range 11) 11450 | -8/Garrison | Triggered checkpoint 11488 | -8/Garrison | Garrison Relay disabled 11800 | -8/Garrison | Triggered checkpoint 11814 | -8/Garrison | Triggered checkpoint 11858 | -8/Garrison | Discovered exit to Materials (range 12) 11920 | -8/Garrison | Triggered checkpoint 11986 | -8/Garrison | Garrison Relay disabled 12012 | -8/Garrison | Triggered checkpoint 12226 | -8/Garrison | Triggered checkpoint 12482 | -8/Garrison | Garrison Relay disabled 12544 | -8/Garrison | Discovered exit to Materials (range 12) 12575 | -8/Garrison | Installed Relay Interface Framework 12594 | -8/Garrison | Entered Materials 12627 | -8/Materials | Upgraded with Weapon slot (x1) 12822 | -8/Materials | Reached level 14 13504 | -8/Materials | Build established: Wizard-Gunner 13804 | -8/Materials | Build established: Wizard-Mutant 13877 | -8/Materials | Discovered exit to Factory (range 15) 14252 | -8/Materials | Discovered exit to Factory (range 16) 14317 | -8/Materials | Build established: Wizard-Gunner 14752 | -8/Materials | Build established: Wizard-Mutant 14826 | -8/Materials | Identified exit to Garrison 14835 | -8/Materials | Entered Garrison 14835 | -8/Garrison | Accompanied by 1 ally 15056 | -8/Garrison | Triggered checkpoint 15067 | -8/Garrison | Build established: Wizard-Gunner 15114 | -8/Garrison | Garrison Relay disabled 15128 | -8/Garrison | Upgraded with Utility slot (x1) 15219 | -8/Garrison | Triggered checkpoint 15225 | -8/Garrison | Triggered checkpoint 15276 | -8/Garrison | Triggered checkpoint 15309 | -8/Garrison | Triggered checkpoint 15446 | -8/Garrison | Triggered checkpoint 15469 | -8/Garrison | Garrison Relay disabled 15553 | -8/Garrison | Discovered exit to Factory (range 12) 15622 | -8/Garrison | Build established: Wizard-Mutant 15717 | -8/Garrison | Triggered checkpoint 15747 | -8/Garrison | Garrison Relay disabled 15790 | -8/Garrison | Discovered exit to Factory (range 10) 15814 | -8/Garrison | Expanded RIF knowledge: Alert ID Control 15948 | -8/Garrison | Triggered checkpoint 16214 | -8/Garrison | Discovered exit to Factory (range 14) 16230 | -8/Garrison | Build established: Wizard-Gunner 16305 | -8/Garrison | Entered Factory 16307 | -7/Factory | Reached level 15 16662 | -7/Factory | Identified exit to Garrison 16804 | -7/Factory | Reached level 16 17296 | -7/Factory | Upgraded with Weapon slot (x1) 17892 | -7/Factory | Identified exit to Storage 17892 | -7/Factory | Discovered exit to Storage (range 14) 18832 | -7/Factory | Identified exit to Factory 18832 | -7/Factory | Discovered exit to Factory (range 9) 18930 | -7/Factory | Fabricated A-02 Transporter? 19926 | -7/Factory | Garrison activated, responded to threat 19936 | -7/Factory | Reached level 17 19976 | -7/Factory | Identified exit to Garrison 19988 | -7/Factory | Entered Garrison 20085 | -7/Garrison | Destroyed 8 combat bots 20146 | -7/Garrison | Triggered checkpoint 20204 | -7/Garrison | Triggered checkpoint 20210 | -7/Garrison | Triggered checkpoint 20375 | -7/Garrison | Triggered checkpoint 20437 | -7/Garrison | Identified exit to Factory 20437 | -7/Garrison | Discovered exit to Factory (range 8) 20466 | -7/Garrison | Triggered checkpoint 20506 | -7/Garrison | Triggered checkpoint 20630 | -7/Garrison | Discovered exit to Factory (range 8) 20680 | -7/Garrison | Triggered checkpoint 20930 | -7/Garrison | Triggered checkpoint 20959 | -7/Garrison | Garrison Relay disabled 20993 | -7/Garrison | Discovered exit to Factory (range 14) 21029 | -7/Garrison | Expanded RIF knowledge: Robot Detection 21049 | -7/Garrison | Entered Factory 21448 | -7/Factory | Build established: Wizard-Tank 21613 | -7/Factory | Identified exit to Lower Caves 21613 | -7/Factory | Discovered exit to Lower Caves (range 13) 21651 | -7/Factory | Destroyed 8 combat bots 21768 | -7/Factory | Reached level 18 22031 | -7/Factory | Discovered exit to Factory (range 11) 25133 | -7/Factory | Identified exit to Garrison 25133 | -7/Factory | Entered Garrison 25165 | -7/Garrison | Triggered checkpoint 25197 | -7/Garrison | Garrison Relay disabled 25275 | -7/Garrison | Triggered checkpoint 25296 | -7/Garrison | Triggered checkpoint 25297 | -7/Garrison | Triggered checkpoint 25444 | -7/Garrison | Triggered checkpoint 25493 | -7/Garrison | Discovered exit to Factory (range 15) 25533 | -7/Garrison | Expanded RIF knowledge: Structural Interface 25808 | -7/Garrison | Discovered exit to Factory (range 11) 25864 | -7/Garrison | Triggered checkpoint 25917 | -7/Garrison | Garrison Relay disabled 26020 | -7/Garrison | Triggered checkpoint 26039 | -7/Garrison | Discovered exit to Factory (range 11) 26078 | -7/Garrison | Triggered checkpoint 26084 | -7/Garrison | Reached level 19 26113 | -7/Garrison | Garrison Relay disabled 26255 | -7/Garrison | Upgraded with Utility slot (x1) 26255 | -7/Garrison | Found Powered Armor 26331 | -7/Garrison | Entered Factory 26503 | -6/Factory | Identified exit to Garrison 26630 | -6/Factory | Identified exit to Lower Caves 26630 | -6/Factory | Discovered exit to Lower Caves (range 38) 27026 | -6/Factory | Spotted B-75 Beast 27033 | -6/Factory | Destroyed B-75 Beast 27043 | -6/Factory | Identified exit to Factory 27043 | -6/Factory | Discovered exit to Factory (range 15) 27534 | -6/Factory | Build established: Wizard-Gunner 27817 | -6/Factory | Reached level 20 28198 | -6/Factory | Build established: Wizard-Tank 28238 | -6/Factory | Identified exit to Extension 28590 | -6/Factory | Discovered exit to Factory (range 15) 28971 | -6/Factory | Sucked down chute 28971 | -6/Factory | Entered Waste 28972 | -6/Waste | Joined by Warlord forces that had cleared the area 29121 | -6/Waste | Build established: Wizard-Gunner 29460 | -6/Waste | Identified exit to Factory 29460 | -6/Waste | Discovered exit to Factory (range 10) 29495 | -6/Waste | Entered Factory 29495 | -6/Factory | Accompanied by 20 allies 29731 | -6/Factory | Garrison activated, responded to threat 30173 | -6/Factory | Build established: Wizard-Tank 30389 | -6/Factory | Upgraded with Weapon slot (x1) 30490 | -6/Factory | Reached level 21 30655 | -6/Factory | Upgraded with Propulsion slot (x1) 30697 | -6/Factory | Build established: Wizard-Executioner 30836 | -6/Factory | Upgraded with Power slot (x1) 31321 | -6/Factory | Garrison activated, responded to threat 31442 | -6/Factory | Entered Extension 31594 | -6/Extension | Spotted B-75 Beast 31602 | -6/Extension | Destroyed B-75 Beast 31615 | -6/Extension | Destroyed B-75 Beast 31667 | -6/Extension | Disrupted transfer network 31703 | -6/Extension | Discovered exit to Factory (range 4) 31792 | -6/Extension | First assault squad dispatched 31991 | -6/Extension | Discovered exit to Factory (range 16) 31991 | -6/Extension | Identified exit to Cetus 31991 | -6/Extension | Discovered exit to Cetus (range 16) 32050 | -6/Extension | Entered Cetus 32074 | -6/Cetus | Spotted Cetus Guard 32074 | -6/Cetus | Spotted Cetus Guard 32077 | -6/Cetus | Destroyed Cetus Guard 32081 | -6/Cetus | Spotted Cetus Guard 32083 | -6/Cetus | Destroyed Cetus Guard 32088 | -6/Cetus | Destroyed Cetus Guard 32089 | -6/Cetus | Spotted Cetus Guard 32093 | -6/Cetus | Destroyed Cetus Guard 32355 | -6/Cetus | Identified exit to Archives 32355 | -6/Cetus | Discovered exit to Archives (range 16) 32398 | -6/Cetus | Spotted Cetus Guard 32398 | -6/Cetus | Spotted Cetus Guard 32401 | -6/Cetus | Spotted Cetus Guard 32407 | -6/Cetus | Spotted Cetus Guard 32411 | -6/Cetus | Destroyed Cetus Guard 32411 | -6/Cetus | Destroyed Cetus Guard 32411 | -6/Cetus | Destroyed Cetus Guard 32411 | -6/Cetus | Destroyed Cetus Guard 32427 | -6/Cetus | Discovered exit to Factory (range 16) 32440 | -6/Cetus | Met Revision 17 32502 | -6/Cetus | Reached level 22 32778 | -6/Cetus | Discovered exit to Factory (range 16) 33013 | -6/Cetus | Entered Archives 33141 | -6/Archives | Discovered exit to Factory (range 16) 33173 | -6/Archives | Identified exit to Hub_04(d) 33173 | -6/Archives | Discovered exit to Hub_04(d) (range 15) 33186 | -6/Archives | Unable to access archive contents 33207 | -6/Archives | Unable to access archive contents 33228 | -6/Archives | Unable to access archive contents 33345 | -6/Archives | Discovered exit to Hub_04(d) (range 14) 33377 | -6/Archives | Entered Hub_04(d) 33392 | -6/Hub_04(d) | Discovered exit to Factory (range 5) 33456 | -6/Hub_04(d) | Entered Factory 33947 | -5/Factory | Identified exit to Factory 33947 | -5/Factory | Discovered exit to Factory (range 13) 34345 | -5/Factory | Reached level 23 34995 | -5/Factory | Spotted B-75 Beast 34999 | -5/Factory | Destroyed B-75 Beast 35256 | -5/Factory | First assault squad dispatched 35362 | -5/Factory | Identified exit to Upper Caves 35362 | -5/Factory | Discovered exit to Upper Caves (range 5) 35553 | -5/Factory | Destroyed 10 combat bots 35764 | -5/Factory | Upgraded with Utility slot (x1) 35765 | -5/Factory | Entered Upper Caves 35959 | -5/Upper Caves | Learned Factory terminal intel 35971 | -5/Upper Caves | Spotted B-75 Beast 35986 | -5/Upper Caves | Destroyed B-75 Beast 36040 | -5/Upper Caves | Attracted the attention of an 0b10 outpost 36072 | -5/Upper Caves | Destroyed 7 combat bots 36320 | -5/Upper Caves | Learned Factory emergency access door positions 36404 | -5/Upper Caves | Identified exit to Upper Caves 36404 | -5/Upper Caves | Discovered exit to Upper Caves (range 7) 36968 | -5/Upper Caves | Attracted the attention of an 0b10 checkpoint 36969 | -5/Upper Caves | Reached level 24 37848 | -5/Upper Caves | Entered another Upper Caves area 38319 | -5/Upper Caves | Build established: Wizard-Tank 38988 | -5/Upper Caves | Identified exit to Zhirov 38988 | -5/Upper Caves | Discovered exit to Zhirov (range 11) 39147 | -5/Upper Caves | Learned location of 1 exit from Proximity Caves 39197 | -5/Upper Caves | Attracted the attention of an 0b10 checkpoint 39642 | -5/Upper Caves | Build established: Wizard-Executioner 39916 | -5/Upper Caves | Discovered exit to Factory (range 7) 40414 | -5/Upper Caves | Entered Zhirov 40414 | -5/Zhirov | Identified exit to Proximity Caves 40414 | -5/Zhirov | Discovered exit to Proximity Caves (range 3) 40452 | -5/Zhirov | Met Zhirov 40582 | -5/Zhirov | Zhirov requested help retrieving the SGEMP Prototype 40629 | -5/Zhirov | Found Alien Artifact 40629 | -5/Zhirov | Identified Integrated Reactor 40629 | -5/Zhirov | Installed Integrated Reactor, increased core energy generation (+2%) 40668 | -5/Zhirov | Found Alien Artifact 40668 | -5/Zhirov | Identified Transdimensional Reconstructor 40668 | -5/Zhirov | Warped through subspace 40905 | -5/Zhirov | Entered Proximity Caves 41087 | -4/Proximity Caves | Attracted the attention of an 0b10 checkpoint 41256 | -4/Proximity Caves | Attracted the attention of an 0b10 base 41290 | -4/Proximity Caves | Reached level 25 41311 | -4/Proximity Caves | Destroyed 7 combat bots 41329 | -4/Proximity Caves | Learned location of 1 exit from Research 41946 | -4/Proximity Caves | Learned 4 Research zone layouts 43584 | -4/Proximity Caves | Entered Factory 43585 | -4/Factory | Identified exit to Upper Caves 43587 | -4/Factory | Loaded intel: 20 terminal locations 43725 | -4/Factory | Identified exit to Research 43948 | -4/Factory | Reached level 26 44138 | -4/Factory | Garrison activated, responded to threat 44184 | -4/Factory | Core integrity fell below 50% 44223 | -4/Factory | Identified exit to Garrison 44227 | -4/Factory | Entered Garrison 44303 | -4/Garrison | Spotted B-86 Titan 44309 | -4/Garrison | Triggered checkpoint 44309 | -4/Garrison | Triggered checkpoint 44310 | -4/Garrison | Destroyed B-86 Titan 44335 | -4/Garrison | Triggered checkpoint 44368 | -4/Garrison | Destroyed 16 combat bots 44430 | -4/Garrison | Triggered checkpoint 44510 | -4/Garrison | Triggered checkpoint 44518 | -4/Garrison | Garrison Relay disabled 44616 | -4/Garrison | Discovered exit to Research (range 8) 44807 | -4/Garrison | Triggered checkpoint 44866 | -4/Garrison | Garrison Relay disabled 44994 | -4/Garrison | Discovered exit to Research (range 15) 45044 | -4/Garrison | Expanded RIF knowledge: Coupler Efficiency 45092 | -4/Garrison | Triggered checkpoint 45158 | -4/Garrison | Garrison Relay disabled 45322 | -4/Garrison | Triggered checkpoint 45376 | -4/Garrison | Discovered exit to Research (range 10) 45683 | -4/Garrison | Entered Research 45684 | -3/Research | Identified exit to Testing 45685 | -3/Research | Identified exit to Research 45685 | -3/Research | Reached level 27 45840 | -3/Research | Reached level 28 45889 | -3/Research | Destroyed 7 combat bots 46337 | -3/Research | Upgraded with Utility slot (x1) 46433 | -3/Research | First assault squad dispatched 46561 | -3/Research | Reached level 29 46641 | -3/Research | Destroyed 7 combat bots 46748 | -3/Research | Destroyed 10 combat bots 46828 | -3/Research | Destroyed 7 combat bots 47133 | -3/Research | Destroyed 11 combat bots 47226 | -3/Research | Reached level 30 47411 | -3/Research | Upgraded with Propulsion slot (x1) 47783 | -3/Research | Identified exit to Armory 48003 | -3/Research | Garrison activated, responded to threat 48052 | -3/Research | Destroyed 12 combat bots 48112 | -3/Research | Garrison activated, responded to threat 48413 | -3/Research | Upgraded with Utility slot (x1) 48802 | -3/Research | Entered another Research area 48804 | -2/Research | Reached level 31 48904 | -2/Research | Garrison activated, responded to threat 49207 | -2/Research | Garrison activated, responded to threat 49272 | -2/Research | Identified exit to Quarantine 49289 | -2/Research | Upgraded with Propulsion slot (x1) 49508 | -2/Research | Destroyed 7 combat bots 49532 | -2/Research | Reached level 32 49786 | -2/Research | Entered Quarantine 49787 | -2/Quarantine | Maximum security lockdown engaged 50012 | -2/Quarantine | Destroyed 23 combat bots 50036 | -2/Quarantine | Spotted Executioner 50040 | -2/Quarantine | Spotted Striker 50040 | -2/Quarantine | Spotted Executioner 50054 | -2/Quarantine | Reached level 33 50054 | -2/Quarantine | Destroyed Striker 50058 | -2/Quarantine | Core integrity fell below 50% 50068 | -2/Quarantine | Core integrity fell below 20% 50074 | -2/Quarantine | Destroyed by G-73 Enforcer with Phase Gun Last Messages --------------- 50062_ Penetrated by Slug. 50064_ Protomatter-57 decays. 50064_ Penetrated by Slug. 50064_ Slug penetrates Wall. 50064_ Melted Rnf. Antimatter Reactor. 50064_ Med. Treads melted. 50064_ B-74 Champion destroyed. 50068_ P-80 Master resets G-73 Enforcer, system corruption cleaned. 50070_ Slug penetrates I-47 Archangel. 50071_ Slug penetrates Earth. 50071_ Destroyed Hvy. Laser. 50071_ Melted Phase Gun. 50071_ Adv. Heat Sink melted. 50071_ G-73 Enforcer destroyed. 50072_ G-73 Enforcer critical meltdown. 50072_ Unknown Reactor melted. 50074_ System corrupted: Substantial component data lost. [Achievement: 50k Club] [Achievement: Torch] [Achievement: Overachiever] Map ----- +----------------------------------------------------+ | ?????????????????????????????????????????????????? | | ?????????????????????????????????????????????????? | | ?????????????????????????????????????????????????? | | ?????????????????????????????????????????????????? | | ?????????????????????????????????????????????????? | | ?????????????????????????????????????????????????? | | ?????????????????????????????????????????????????? | | ?????????????????????????????????????????????????? | | ?????????????????????????????????????????????????? | | ?????????????????????w???????????????????????????? | | ??????????????????????????? ???????????????????? | | ?????????????????????????# ???????????????????? | | ?????????????????????????# #??????????????????? | | ???????????????????????#?# ###????????????????? | | ??????????????????????? ! = #????????????????? | | ??????????????????????? #????????????????? | | ?????????????????????? #????????????????? | | ???????????????????"?""" """ #????????????????? | | ???????????????? "?" """ """ ###+#####????????? | | ?????????????????""" """ """ # #????????? | | ????????????????? ; """ #????????? | | ???????????????? """ """ """ # " " #????????? | | ???????????????? " " """ """=* %#%i"" #????????? | | ???????????? """m""" " g=%|%%*E%% #????????? | | ?????????? p =g[ ! %[ "" ]#????????? | | ?????????? i @!%!%g% !" #????????? | | ?????????????????###;;;; = = =E * %" ! #????????? | | ???????????????????## !%%gm# ]| ##???????? | | ????????????????????# ## =%[%# # #???????? | | ????????????????????#??## !# #????????? | | ????????????????????????#[ ==# # ##????????? | | ????????????????????????##* *### #?????????? | | ?????????????????????????# *!% ## # ###?????????? | | ???????????????###########%!!!#### ###???????????? | | ???????????????# ##! * #??# #?????????????? | | ???????????????# """ ## g#??# #?????????????? | | ???????????????# """ ## ####+######????????? | | ???????????????#= """ ## g # #????????? | | ???????????????# + """ #????????? | | ???????????????# "" ### # " " #????????? | | ???????###?????# S"" #?#!% # """ #????????? | | ???????# ?????# "" #?# #????????? | | ???????? ????# #?#%= # """ #????????? | | ?????????# #########+###### %= " " #????????? | | ?????????# # """ #????????? | | ?????????# %# #????????? | | ?????????# """ #????????? | | ?????????# " " #????????? | | ?????????##################!### """ #????????? | | ??????????????????????# # #????????? | +----------------------------------------------------+ Best States ------------- Heat Dissipation 125 Coolant Potential 100 Energy Generation 100 Energy Capacity 1350 Matter Stores 450 Matter Capacity 500 Sight Range 16 Terrain Scan Density 10 Base Temperature (-) 150 Armor Coverage 775 Resistance: KI 35 Resistance: TH 60 Resistance: EX 35 Resistance: EM 35 Resistance: I 35 Resistance: S 35 Resistance: P 35 Weapon Shielding 66 Evasion (%) 50 Recoil Reduction 5 Energy Filtering 30 Particle Charging 15 Offensive Hacking 95 Defensive Hacking 15 Item Schematics ----------------- Assault Rifle | -10/Materials | Hacked Gravmag Array | -7/Factory | Hacked Adv. Assault Cannon | -7/Factory | Hacked Fusion Compressor | -7/Factory | Hacked Imp. Shield Generator | -7/Factory | Hacked Neutrino Core | -7/Factory | Hacked Triangulator | -7/Factory | Hacked Hvy. Flak Cannon | -7/Factory | Hacked Imp. Kinecellerator | -7/Factory | Hacked Hvy. Laser | -7/Factory | Hacked Antimatter Cannon | -7/Factory | Hacked Energy Well | -7/Factory | Hacked Overload Regulator | -6/Factory | Hacked Reaction Control System | -6/Factory | Hacked Lrn. Proton Cannon | -6/Factory | Hacked Adv. Trap Extractor | -6/Factory | Hacked Arm. Medium Treads | -6/Factory | Hacked Imp. Cryofiber Web | -6/Factory | Hacked Hvy. Disruptor Cannon | -5/Factory | Hacked Assault Drone Bay | -5/Zhirov | Free Exp. Heat Sink | -5/Zhirov | Free Exp. Optical Array | -5/Zhirov | Free Imp. Arc Thrower | -5/Zhirov | Free Nova Cannon | -4/Factory | Hacked Exp. Shield Generator | -4/Factory | Hacked Impulse Thruster Array | -4/Factory | Hacked Enh. Quantum Rifle | -4/Factory | Hacked Imp. Overload Regulator | -3/Research | Hacked Robot Schematics ------------------ B-48 Gladiator | -7/Factory | Hacked K-01 Serf | -7/Factory | Hacked Y-64 Sentinel | -5/Factory | Hacked A-02 Transporter | -5/Factory | Hacked Fabricated ------------ A-02 Transporter | x1 | -7/Factory | Preloaded Alien Tech Used ----------------- Integrated Reactor Transdimensional Reconstructor Achievements -------------- 50k Club Brute Force Killing Spree Left-hand Path More Power To You Overachiever Pyromaniac Torch Treasure Hunter Challenges ------------ None RPGLIKE | -11 -10 -10 -9 -9 -9 -8 -8 -8 -8 -8 -7 -7 -7 -7 -6 -6 -6 -6 -6 -6 -6 -5 -5 -5 -5 -4 -4 -4 -3 -2 -2 --------- Run | Scr Mat Min Mat Min Exi Min Mat Gar Mat Gar Fac Gar Fac Gar Fac Was Fac Ext Cet Arc Hub Fac Upp Upp Zhi Pro Fac Gar Res Res Qua Levels Raised 32 | . 1 . 4 1 . 1 4 1 1 . 3 . 1 1 1 . 1 . 1 . . 1 1 . . 1 1 . 4 2 1 XP Earned 54198 | 6000 1535 755 5930 1450 350 1700 5665 1820 834 892 3071 1077 1428 539 2057 46 1498 524 447 101 116 2087 599 373 105 1722 1036 1142 5452 2214 1633 XP Spent 52580 | 1500 2700 . 620 . 8300 650 5000 2000 1100 3300 3200 . 1250 2600 . . 3300 . . . . 2900 . . . . . 960 7800 1400 4000 Upgrades 63 | 3 6 . 3 . 9 5 4 1 1 2 2 . 1 1 . . 3 . . . . 1 . . . . . 12 3 1 5 Power Slot 2 | . . . 1 . . . . . . . . . . . . . 1 . . . . . . . . . . . . . . Propulsion Slot 4 | 1 . . . . . . . . . . . . . . . . 1 . . . . . . . . . . . 1 1 . Utility Slot 11 | 1 . . . . . . 4 1 . 1 . . . 1 . . . . . . . 1 . . . . . . 2 . . Weapon Slot 5 | 1 . . . . 1 . . . 1 . 1 . . . . . 1 . . . . . . . . . . . . . . Core Integrity 12 | . . . . . . . . . . . . . . . . . . . . . . . . . . . . 12 . . . Heat Dissipation 7 | . . . 2 . . 5 . . . . . . . . . . . . . . . . . . . . . . . . . Energy Generation 5 | . . . . . . . . . . . . . . . . . . . . . . . . . . . . . . . 5 Inventory Capacity 5 | . 3 . . . . . . . . 1 . . 1 . . . . . . . . . . . . . . . . . . Hack Attack % 9 | . 3 . . . 5 . . . . . 1 . . . . . . . . . . . . . . . . . . . . Hack Defense % 3 | . . . . . 3 . . . . . . . . . . . . . . . . . . . . . . . . . . Protomatter Created 15643 | . 155 9 396 50 . 54 418 459 330 436 756 618 1434 312 1143 . 530 351 155 76 . 725 315 368 . 584 191 372 3736 874 796 Integrity Restored 13824 | . 194 . 648 85 . 48 705 427 202 288 690 276 623 119 877 . 374 355 282 185 . 1050 317 183 . 507 15 549 3700 781 344 Core 8702 | . 123 . 437 59 . 18 415 280 119 188 394 139 368 75 564 . 214 234 234 113 . 452 98 125 . 360 15 549 2664 213 252 Parts 5122 | . 71 . 211 26 . 30 290 147 83 100 296 137 255 44 313 . 160 121 48 72 . 598 219 58 . 147 . . 1036 568 92 Protomatter Decayed 6220 | . 81 20 264 . . 65 177 177 187 207 285 168 591 206 579 95 528 199 11 . . 91 180 216 . 335 141 11 897 291 218 Game ------ Seed SpreadMetafiberLauncher Manual? 0 Play Time 05:42:05 Cumulative 120.0 hours Start 2020.02.20 @ 10:56:18 End 2020.02.20 @ 16:55:45 Sessions 1 Manual Loads 0 Difficulty Explorer Special Mode Winter2019/RPGLIKE Game No. 75 Rogue 58 Adventurer 0 Explorer 17 Win Type - Total 1 Types 1/0/0/0/0/0/0 Lore% 56 Gallery% 56 Achievement% 50 Wizard Run 0 Options --------- ASCII 1 Keyboard 1 Movement Vi Keybinds 0 Fullscreen 1 Font 18/X11Bold Map View 76x50 Tactical HUD 1 Map Filters NONE Filters LOW_CONTRAST(47,30,31)|SHIFT_HUE(1) Steam 1 RUN: 3261912e-5af5-4d4f-a346-7c3167adc5ea